{"text_format":"1","workbook":"xlsx","n_sheets":10,"sheets":["Deckblatt","Anleitung","Richtlinien Jugendförderung","Update","Deandl","Buam","Jugendleiter","Erhebungsbogen","Förderantrag","Zusätzliche Auswertungen"],"not_rendered":{"charts":0,"images":24,"macros":1,"external_links":1,"defined_names":2,"comments":0,"pivot_tables":0},"unopened":[],"bounds":{"document_bytes":16777216,"sheet_cells":100000,"rows_first":2000,"rows_last":500,"rows_between":2000,"halvings":0,"cell_chars":16384,"cell_head_chars":4096},"cells_cut":0,"cells_raw":0,"read":"whole","date_system":"1900"}

{"sheet":"Deckblatt","index":0,"n_rows":201,"n_cols":4,"rows_kept":201,"cut":false,"hidden":false,"merged":[[0,0,0,1],[1,0,1,1],[2,0,2,1]]}
["Bayerische Trachtenjugend e. V.",null,{"$f":"TODAY()","v":"2020-10-16"}]
["Kinder und Jugenderfassung",null,null,"Link zu den Videoanleitungen"]
[{"$f":"TEXT(TODAY()-31,\"jjJJ\")","v":"2020"}]
["zum Stichtag",{"$f":"IF(C4=1,(DATE(YEAR(TODAY()),12,31)-366),DATE(YEAR(TODAY()),12,31))","v":"2020-12-31"},{"$f":"MONTH(TODAY())","v":10}]
["(Vereinsname eintragen)","(Vereinsort eintragen)"]
[null,"Oberbayern"]
[null,"Oberbayern"]
["Kinder- und Jugenderfassung Version 1.31","Erstellt durch: Andal Huber ~ D´Waxnstoana Antdorf ~  Rieden 4 ~ 82387 Antdorf"]
[]
[]
[]
[]
[]
[]
[]
[]
[]
[]
[]
[]
[]
[]
[]
[]
[]
[]
[]
[]
[]
[]
[]
[]
[]
[]
[]
[]
[]
[]
[]
[]
[]
[]
[]
[]
[]
[]
[]
[]
[]
[]
[]
[]
[]
[]
[]
[]
[]
[]
[]
[]
[]
[]
[]
[]
[]
[]
[]
[]
[]
[]
[]
[]
[]
[]
[]
[]
[]
[]
[]
[]
[]
[]
[]
[]
[]
[]
[]
[]
[]
[]
[]
[]
[]
[]
[]
[]
[]
[]
[]
[]
[]
[]
[]
[]
[]
[]
[]
[]
[]
[]
[]
[]
[]
[]
[]
[]
[]
[]
[]
[]
[]
[]
[]
[]
[]
[]
[]
[]
[]
[]
[]
[]
[]
[]
[]
[]
[]
[]
[]
[]
[]
[]
[]
[]
[]
[]
[]
[]
[]
[]
[]
[]
[]
[]
[]
[]
[]
[]
[]
[]
[]
[]
[]
[]
[]
[]
[]
[]
[]
[]
[]
[]
[]
[]
[]
[]
[]
[]
[]
[]
[]
[]
[]
[]
[]
[]
[]
[]
[]
[]
[]
[]
[]
[]
["Oberbayern"]
["Niederbayern"]
["Oberpfalz"]
["Oberfranken"]
["Mittelfranken"]
["Unterfranken"]
["Schwaben"]

{"sheet":"Anleitung","index":1,"n_rows":235,"n_cols":5,"rows_kept":235,"cut":false,"hidden":false,"merged":[[219,0,219,6],[139,0,140,6],[168,0,170,6],[182,0,184,6],[181,0,181,6],[217,0,217,6],[77,0,78,6],[82,0,83,6],[5,0,5,6],[25,0,26,6],[28,0,29,6],[31,0,31,6],[51,0,52,6]]}
["Anleitung zur Kinder- und Jugenderfassung"]
[]
["Die Kinder und Jugenderfassung soll euch Jugendleiter bei eurer Arbeit im Verein unterstützen."]
["So dient sie zum einen als Mitgliederverwaltung und soll euch zum anderen bei der jährlichen Antragstellung der Jugendförderung behilflich sein."]
["1. Deckblatt"]
["Die Jahreszahl wird automatisch für das ensprechende Jahr eingetragen.              "]
["Die Ermittlung erfolgt immer zum Stichtag 31.12. des jeweiligen Jahres"]
["Vereinsname (z.B. D´Waxnstoana) und Vereinsort (z.B. Antdorf) eintragen"]
["Regierungsbezik vom Vereinssitz auswählen"]
["Über die Schaltflächen gelangt man zu den entsprechenden Arbeitsmappen"]
[]
[]
[]
[]
[]
[]
[]
["2. Deandl bzw. Buam"]
[]
[]
[]
[]
["2.1 Übersicht"]
["Die meisten Schaltflächen sind selbsterklärend."]
[]
["Bei drücken von \"Neis Deandl/Bua\" öffnet sich eine Maske zum Eintragen eines neuen Deandls/eines neuen Buam"]
[]
[]
["Drückt man auf \"Deandl/Bua ändern wird der Eintrag des Deandls/Buam geöffnet in dem der Cursor steht"]
[]
[]
["Bei Deandl/Bua löschen wird der Eintrag gelöscht in dem der Cursor steht"]
[]
[]
[]
["Speichern, Druckvorschau und Drucken dürften selbsterklärend sein."]
[]
[]
[]
[]
[]
[]
[]
["Die \"Zusätzlichen Anghaben I-III\" kann jeder Verein/Gauverband selbst bestimmen"]
["z.B. Zusätzliche Angaben I - \"Münchner Kind\" / Zusätzliche Angaben II -  Tracht vom Verein ausgeliehen / Zusätzliche Angaben III - Weitere Angaben"]
["In der Erfassung kann dies dann entsprechen ausgefüllt werden"]
[]
[]
[]
["2.2. Erfassungsmaske"]
[]
["Hier werden die persönlichen Angaben der Kinder und Jugendlichen eingetragen"]
[]
[]
["Hier können die verschiedenen Gruppen / Tätigkeiten / Aktivitäten "]
["der/des Jugendlichen ausgeählt werden."]
["Sobald eine Gruppe (z.B. Dreherin) ausgewählt wurde wird automatisch"]
["bei \"Jugendliche bis einschl. 26 Jahren\" ebenfalls ein Haken gesetzt."]
["Wird \"Jugendliche ist Passiv\" ausgewählt werden allle weiteren Haken gelöscht."]
[]
["Trifft keine der Gruppen / Tätigkeiten / Aktivitäten auf die/den Jugendlichen zu"]
["oder übt sie/er weitere/andere aus können diese als \"Sonstiges 1-3\" erfasst werden."]
["Dabei muss jedoch die Bezeichnung der sonstigen Tätigkeit mit eingetragen werden."]
[]
["Hier können freiwillige Angaben getätigt werden"]
["Legt ein Verein / Gau für eine Angabe in der Deandl bzw. Buam - Übersicht fest, "]
["so muss der Text genau definiert werden welcher in das Feld gschrieben werden soll."]
["z.B."]
["Zusätzliche Angaben I - Münchner Kind"]
["Wenn ja dann X wenn nein dann leer",null,null,null,"oder \"Ja\" und \"Nein\""]
[]
["Nur so kann eine genaue Auswertung im Bereich \"Zusätzliche Auswertungen\" erfolgen."]
[]
[]
[]
["2.3 Änderungsmaske"]
[]
["Die Änderungsmaske ist die selbe Maske wie die der Erfassung nur mit den bereits erfassten Daten des jeweiligen Kindes / Jugendlichen."]
[]
["Hier können nachträglich Aktivitäten  gelöscht bzw. hinzugefügt werden und die/den Jugendliche auf \"Passsiv\" setzen."]
["2.4 Deandl/Bua löschen"]
[]
["Deandl/Bua wird hiermit gelöscht (es gibt kein zurück) jedoch eine vorherige Sicherheitsabfrage."]
[]
[]
[]
[]
[]
[]
[]
[]
["3. Jugendleiter"]
[]
["3.1 Übersicht"]
[]
["Schaltflächen sind grundsätzlich die gleichen wie bei der Erfassung der Deandl bzw. Buam."]
[]
[]
[]
[]
[]
[]
["3.2 Erfassungsmaske"]
[]
["Hier werden die Daten der Jugendleiter erfasst. Neben den Angaben wie Name und Adressdaten werden hier auch die Aus- und Weiterbildungen sowie die JULEICA-Nummer erfasst."]
["Jugendleiter ohne JULEICA-Nummer und gültiger JULEICA werden nicht in den Erhebungsbogen bzw. Förderantrag übernommen!"]
["Unter Sonstiges können noch zusätzliche Angaben gemacht werden."]
[]
[]
[]
[]
[]
[]
[]
[]
[]
[]
[]
[]
[]
[]
[]
[]
[]
[]
[]
[]
[]
[]
[]
[]
[]
[]
[]
[]
[]
[]
["4. Mehrfachzählung / Jugenderhebungsbogen"]
[]
["Die in den Arbeitsmappen erfassten Daten der Kinder/Jugendlichen werden in diese Maske eingefügt"]
[]
[]
["Der Vereinsname, Sitz des Vereins sowie der Regierungsbezirk wird aus dem Deckblatt übernommen."]
[]
["Die Jugendleiter müssen selbst eingetragen werden."]
[]
[]
[]
[]
[]
[]
[]
[]
[]
[]
[]
[]
[]
[]
[]
[]
[]
[]
[]
[]
[]
[]
[]
["In dieser Maske muss noch die Anzahl der Mitarbeiter in der Jugendarbeit (z.B. Eltern, Vorplattler,…) einzutragen. Alle anderen Daten werden vom Programm selbstständig eingetragen."]
[]
[]
["Hier werden die qualifizierten Jugendleiter (ab 2018 nur mit JULEICA) aus der Jugendleitererfassung übernommen."]
[]
["Die maximal förderfähigen Jugendleiter werden  anhand der Richtlinien (je angefangene 10 Jugendliche ein förderfähiger Jugendleiter) berechnet"]
[]
["Sobald alle Kinder und Jugendlichen eingetragen und der Erhebungsbogeben fertig ausgefüllt ist, muss der Erhebungsbogen mit der Schaltfläche "]
["gespeichert werden. Dabei werden nur die Daten im Erhebungsbogen als Extra-Datei gespeichert."]
["Diese Datei müsst ihr dann eurem Gaujugendleiter per Email zukommen lassen."]
["Unbedingt vor der Extra Ausgabe die Exceleistellungen überprüfen, dass nur ein Tabellenblatt in einer neuen Datei eingefügt werden soll."]
[]
["5. Förderantrag"]
["Der Vereinsname wird aus dem Deckblatt übernommen. Der Rest muss selbst eingetragen werden."]
["In den Förderantrag werden die Daten aus dem Erhebungsbogen für die Pro-Kopf und die Jugendleiterförderung übernommen. "]
[]
[]
[]
[]
[]
[]
[]
[]
[]
[]
[]
[]
[]
[]
[]
[]
[]
[]
[]
[]
[]
[]
[]
[]
[]
[]
[]
[]
[]
[]
[]
[]
[]
[]
[]
[]
[" Bankverbindung eintragen ausdrucken unterschreiben und FERTIG!"]
[]
[]
[]
["6. Zusätzliche Auswertungen"]
[]
["Mit den \"Zusätzlichen Auswertungen\" können die Listen der Deandl und Buam nach gewissen Kriterien ausgewertet werden."]
["Dabei wird die ausgewählte Spalte nach den eingetragenen Suchkriterium durchsucht und die gesamte Anzahl ausgewiesen."]
["So kann z.B. die Anzahl der Kinder des gleichen Alters oder mit der gleichen Postleitzahl angezeigt werden"]
[]
["Weiterhin sind auch Auswertungen der \"Zusätzlichen Angaben\" wie z.B. \"Münchner Kind\" möglich"]
["Hierbei sit es wichtig, dass bei der Erfassung immer die gleiche Angabe eingetragen wurde"]
["z.B. Münchner Kind  Wenn ja dann \"X\""]
["so kann man in der Spalte \"Zusätzliche Angaben I\" als Suchkriterium \"X\" eintragen "]
["dann ermittelt das Programm die Anzahl der Kinder welche in dieser Spalte ein \"X\" eingetragen haben."]
["Dies funktioniert auch mit \"Ja\", \"Nein\" oder anderen Texten."]

{"sheet":"Richtlinien Jugendförderung","index":2,"n_rows":1,"n_cols":2,"rows_kept":1,"cut":false,"hidden":false,"merged":[[0,1,0,6]]}
[null,"Richtlinien für die Förderung der Jugendarbeit im Bayerischen Trachtenverband e.V."]

{"sheet":"Update","index":3,"n_rows":35,"n_cols":1,"rows_kept":35,"cut":false,"hidden":false,"merged":[[1,0,1,1]]}
["Update der Jugenderhebung auf die aktuelle Version"]
["Um Eure Jugenderfassung auf den neuesten Stand zu bringen ist ein Update erforderlich. Um eure Daten unkompliziert und möglichst fehlerfrei zu übertragen wurde die Funktion \"Update auf neueste Version eingeführt. Um das Update zu starten klickt ihr auf die Schaltfläche \"Update auf neueste Version\" "]
["Anschließend öffnet sich folgendes Fenster:"]
[]
[]
[]
[]
[]
[]
[]
[]
[]
[]
[]
[]
[]
[]
[]
[]
[]
["In diesem fenster wählt ihr eure aktuelle Jugenderhebung mit den aktuellen Daten aus."]
["Nach Bestätigung auf \"OK\" liest das Programm die Daten aus der alten Version in die neue Version ein."]
["Unter Umständen kommt folgende Meldung:"]
[]
["Diese bitte mit \"Aktualisieren\" bestätigen."]
["Die Daten aus der alten Version werden dann übernommen. Je nach Leistungsfähigkeit des PC´s dauert es ca. 10-30 Sekunden."]
[]
["Wenn alles funktioniert hat erscheint folgende Meldung:"]
[]
[]
[]
[]
[]
[]
["Diese Meldung mit \"OK\" bestätigen und anschließend die Datei speichern."]

{"sheet":"Deandl","index":4,"n_rows":991,"n_cols":31,"rows_kept":991,"cut":false,"hidden":false,"merged":[[0,22,0,23],[0,24,0,25],[0,26,0,27]]}
["Nr.","Name","Vorname","Geburtstag",{"$f":"Deckblatt!B4","v":"2020-12-31"},"Telefon","Straße","PLZ","Ort","JG","PG","VT","SG","VM","BS","SG","MU","TH","MK","BA","PA","Eintrittsjahr",null,null,null,null,null,null,"(Bezeichnung eintragen)","(Bezeichnung eintragen)","(Bezeichnung eintragen)"]
[]
[]
[]
[]
[]
[]
[]
[]
[]
[]
[]
[]
[]
[]
[]
[]
[]
[]
[]
[]
[]
[]
[]
[]
[]
[]
[]
[]
[]
[]
[]
[]
[]
[]
[]
[]
[]
[]
[]
[]
[]
[]
[]
[]
[]
[]
[]
[]
[]
[]
[]
[]
[]
[]
[]
[]
[]
[]
[]
[]
[]
[]
[]
[]
[]
[]
[]
[]
[]
[]
[]
[]
[]
[]
[]
[]
[]
[]
[]
[]
[]
[]
[]
[]
[]
[]
[]
[]
[]
[]
[]
[]
[]
[]
[]
[]
[]
[]
[]
[]
[]
[]
[]
[]
[]
[]
[]
[]
[]
[]
[]
[]
[]
[]
[]
[]
[]
[]
[]
[]
[]
[]
[]
[]
[]
[]
[]
[]
[]
[]
[]
[]
[]
[]
[]
[]
[]
[]
[]
[]
[]
[]
[]
[]
[]
[]
[]
[]
[]
[]
[]
[]
[]
[]
[]
[]
[]
[]
[]
[]
[]
[]
[]
[]
[]
[]
[]
[]
[]
[]
[]
[]
[]
[]
[]
[]
[]
[]
[]
[]
[]
[]
[]
[]
[]
[]
[]
[]
[]
[]
[]
[]
[]
[]
[]
[]
[]
[]
[]
[null,null,null,null,""]
[null,null,null,null,""]
[null,null,null,null,""]
[null,null,null,null,""]
[null,null,null,null,""]
[null,null,null,null,""]
[null,null,null,null,""]
[null,null,null,null,""]
[null,null,null,null,""]
[null,null,null,null,""]
[null,null,null,null,""]
[null,null,null,null,""]
[null,null,null,null,""]
[null,null,null,null,""]
[null,null,null,null,""]
[null,null,null,null,""]
[null,null,null,null,""]
[null,null,null,null,""]
[null,null,null,null,""]
[null,null,null,null,""]
[null,null,null,null,""]
[null,null,null,null,""]
[null,null,null,null,""]
[null,null,null,null,""]
[null,null,null,null,""]
[null,null,null,null,""]
[null,null,null,null,""]
[null,null,null,null,""]
[null,null,null,null,""]
[null,null,null,null,""]
[null,null,null,null,""]
[null,null,null,null,""]
[null,null,null,null,""]
[null,null,null,null,""]
[null,null,null,null,""]
[null,null,null,null,""]
[null,null,null,null,""]
[null,null,null,null,""]
[null,null,null,null,""]
[null,null,null,null,""]
[null,null,null,null,""]
[null,null,null,null,""]
[null,null,null,null,""]
[null,null,null,null,""]
[null,null,null,null,""]
[null,null,null,null,""]
[null,null,null,null,""]
[null,null,null,null,""]
[null,null,null,null,""]
[null,null,null,null,""]
[null,null,null,null,""]
[null,null,null,null,""]
[null,null,null,null,""]
[null,null,null,null,""]
[null,null,null,null,""]
[null,null,null,null,""]
[null,null,null,null,""]
[null,null,null,null,""]
[null,null,null,null,""]
[null,null,null,null,""]
[null,null,null,null,""]
[null,null,null,null,""]
[null,null,null,null,""]
[null,null,null,null,""]
[null,null,null,null,""]
[null,null,null,null,""]
[null,null,null,null,""]
[null,null,null,null,""]
[null,null,null,null,""]
[null,null,null,null,""]
[null,null,null,null,""]
[null,null,null,null,""]
[null,null,null,null,""]
[null,null,null,null,""]
[null,null,null,null,""]
[null,null,null,null,""]
[null,null,null,null,""]
[null,null,null,null,""]
[null,null,null,null,""]
[null,null,null,null,""]
[null,null,null,null,""]
[null,null,null,null,""]
[null,null,null,null,""]
[null,null,null,null,""]
[null,null,null,null,""]
[null,null,null,null,""]
[null,null,null,null,""]
[null,null,null,null,""]
[null,null,null,null,""]
[null,null,null,null,""]
[null,null,null,null,""]
[null,null,null,null,""]
[null,null,null,null,""]
[null,null,null,null,""]
[null,null,null,null,""]
[null,null,null,null,""]
[null,null,null,null,""]
[null,null,null,null,""]
[null,null,null,null,""]
[null,null,null,null,""]
[null,null,null,null,""]
[null,null,null,null,""]
[null,null,null,null,""]
[null,null,null,null,""]
[null,null,null,null,""]
[null,null,null,null,""]
[null,null,null,null,""]
[null,null,null,null,""]
[null,null,null,null,""]
[null,null,null,null,""]
[null,null,null,null,""]
[null,null,null,null,""]
[null,null,null,null,""]
[null,null,null,null,""]
[null,null,null,null,""]
[null,null,null,null,""]
[null,null,null,null,""]
[null,null,null,null,""]
[null,null,null,null,""]
[null,null,null,null,""]
[null,null,null,null,""]
[null,null,null,null,""]
[null,null,null,null,""]
[null,null,null,null,""]
[null,null,null,null,""]
[null,null,null,null,""]
[null,null,null,null,""]
[null,null,null,null,""]
[null,null,null,null,""]
[null,null,null,null,""]
[null,null,null,null,""]
[null,null,null,null,""]
[null,null,null,null,""]
[null,null,null,null,""]
[null,null,null,null,""]
[null,null,null,null,""]
[null,null,null,null,""]
[null,null,null,null,""]
[null,null,null,null,""]
[null,null,null,null,""]
[null,null,null,null,""]
[null,null,null,null,""]
[null,null,null,null,""]
[null,null,null,null,""]
[null,null,null,null,""]
[null,null,null,null,""]
[null,null,null,null,""]
[null,null,null,null,""]
[null,null,null,null,""]
[null,null,null,null,""]
[null,null,null,null,""]
[null,null,null,null,""]
[null,null,null,null,""]
[null,null,null,null,""]
[null,null,null,null,""]
[null,null,null,null,""]
[null,null,null,null,""]
[null,null,null,null,""]
[null,null,null,null,""]
[null,null,null,null,""]
[null,null,null,null,""]
[null,null,null,null,""]
[null,null,null,null,""]
[null,null,null,null,""]
[null,null,null,null,""]
[null,null,null,null,""]
[null,null,null,null,""]
[null,null,null,null,""]
[null,null,null,null,""]
[null,null,null,null,""]
[null,null,null,null,""]
[null,null,null,null,""]
[null,null,null,null,""]
[null,null,null,null,""]
[null,null,null,null,""]
[null,null,null,null,""]
[null,null,null,null,""]
[null,null,null,null,""]
[null,null,null,null,""]
[null,null,null,null,""]
[null,null,null,null,""]
[null,null,null,null,""]
[null,null,null,null,""]
[null,null,null,null,""]
[null,null,null,null,""]
[null,null,null,null,""]
[null,null,null,null,""]
[null,null,null,null,""]
[null,null,null,null,""]
[null,null,null,null,""]
[null,null,null,null,""]
[null,null,null,null,""]
[null,null,null,null,""]
[null,null,null,null,""]
[null,null,null,null,""]
[null,null,null,null,""]
[null,null,null,null,""]
[null,null,null,null,""]
[null,null,null,null,""]
[null,null,null,null,""]
[null,null,null,null,""]
[null,null,null,null,""]
[null,null,null,null,""]
[null,null,null,null,""]
[null,null,null,null,""]
[null,null,null,null,""]
[null,null,null,null,""]
[null,null,null,null,""]
[null,null,null,null,""]
[null,null,null,null,""]
[null,null,null,null,""]
[null,null,null,null,""]
[null,null,null,null,""]
[null,null,null,null,""]
[null,null,null,null,""]
[null,null,null,null,""]
[null,null,null,null,""]
[null,null,null,null,""]
[null,null,null,null,""]
[null,null,null,null,""]
[null,null,null,null,""]
[null,null,null,null,""]
[null,null,null,null,""]
[null,null,null,null,""]
[null,null,null,null,""]
[null,null,null,null,""]
[null,null,null,null,""]
[null,null,null,null,""]
[null,null,null,null,""]
[null,null,null,null,""]
[null,null,null,null,""]
[null,null,null,null,""]
[null,null,null,null,""]
[null,null,null,null,""]
[null,null,null,null,""]
[null,null,null,null,""]
[null,null,null,null,""]
[null,null,null,null,""]
[null,null,null,null,""]
[null,null,null,null,""]
[null,null,null,null,""]
[null,null,null,null,""]
[null,null,null,null,""]
[null,null,null,null,""]
[null,null,null,null,""]
[null,null,null,null,""]
[null,null,null,null,""]
[null,null,null,null,""]
[null,null,null,null,""]
[null,null,null,null,""]
[null,null,null,null,""]
[null,null,null,null,""]
[null,null,null,null,""]
[null,null,null,null,""]
[null,null,null,null,""]
[null,null,null,null,""]
[null,null,null,null,""]
[null,null,null,null,""]
[null,null,null,null,""]
[null,null,null,null,""]
[null,null,null,null,""]
[null,null,null,null,""]
[null,null,null,null,""]
[null,null,null,null,""]
[null,null,null,null,""]
[null,null,null,null,""]
[null,null,null,null,""]
[null,null,null,null,""]
[null,null,null,null,""]
[null,null,null,null,""]
[null,null,null,null,""]
[null,null,null,null,""]
[null,null,null,null,""]
[null,null,null,null,""]
[null,null,null,null,""]
[null,null,null,null,""]
[null,null,null,null,""]
[null,null,null,null,""]
[null,null,null,null,""]
[null,null,null,null,""]
[null,null,null,null,""]
[null,null,null,null,""]
[null,null,null,null,""]
[null,null,null,null,""]
[null,null,null,null,""]
[null,null,null,null,""]
[null,null,null,null,""]
[null,null,null,null,""]
[null,null,null,null,""]
[null,null,null,null,""]
[null,null,null,null,""]
[null,null,null,null,""]
[null,null,null,null,""]
[null,null,null,null,""]
[null,null,null,null,""]
[null,null,null,null,""]
[null,null,null,null,""]
[null,null,null,null,""]
[null,null,null,null,""]
[null,null,null,null,""]
[null,null,null,null,""]
[null,null,null,null,""]
[null,null,null,null,""]
[null,null,null,null,""]
[null,null,null,null,""]
[null,null,null,null,""]
[null,null,null,null,""]
[null,null,null,null,""]
[null,null,null,null,""]
[null,null,null,null,""]
[null,null,null,null,""]
[null,null,null,null,""]
[null,null,null,null,""]
[null,null,null,null,""]
[null,null,null,null,""]
[null,null,null,null,""]
[null,null,null,null,""]
[null,null,null,null,""]
[null,null,null,null,""]
[null,null,null,null,""]
[null,null,null,null,""]
[null,null,null,null,""]
[null,null,null,null,""]
[null,null,null,null,""]
[null,null,null,null,""]
[null,null,null,null,""]
[null,null,null,null,""]
[null,null,null,null,""]
[null,null,null,null,""]
[null,null,null,null,""]
[null,null,null,null,""]
[null,null,null,null,""]
[null,null,null,null,""]
[null,null,null,null,""]
[null,null,null,null,""]
[null,null,null,null,""]
[null,null,null,null,""]
[null,null,null,null,""]
[null,null,null,null,""]
[null,null,null,null,""]
[null,null,null,null,""]
[null,null,null,null,""]
[null,null,null,null,""]
[null,null,null,null,""]
[null,null,null,null,""]
[null,null,null,null,""]
[null,null,null,null,""]
[null,null,null,null,""]
[null,null,null,null,""]
[null,null,null,null,""]
[null,null,null,null,""]
[null,null,null,null,""]
[null,null,null,null,""]
[null,null,null,null,""]
[null,null,null,null,""]
[null,null,null,null,""]
[null,null,null,null,""]
[null,null,null,null,""]
[null,null,null,null,""]
[null,null,null,null,""]
[null,null,null,null,""]
[null,null,null,null,""]
[null,null,null,null,""]
[null,null,null,null,""]
[null,null,null,null,""]
[null,null,null,null,""]
[null,null,null,null,""]
[null,null,null,null,""]
[null,null,null,null,""]
[null,null,null,null,""]
[null,null,null,null,""]
[null,null,null,null,""]
[null,null,null,null,""]
[null,null,null,null,""]
[null,null,null,null,""]
[null,null,null,null,""]
[null,null,null,null,""]
[null,null,null,null,""]
[null,null,null,null,""]
[null,null,null,null,""]
[null,null,null,null,""]
[null,null,null,null,""]
[null,null,null,null,""]
[null,null,null,null,""]
[null,null,null,null,""]
[null,null,null,null,""]
[null,null,null,null,""]
[null,null,null,null,""]
[null,null,null,null,""]
[null,null,null,null,""]
[null,null,null,null,""]
[null,null,null,null,""]
[null,null,null,null,""]
[null,null,null,null,""]
[null,null,null,null,""]
[null,null,null,null,""]
[null,null,null,null,""]
[null,null,null,null,""]
[null,null,null,null,""]
[null,null,null,null,""]
[null,null,null,null,""]
[null,null,null,null,""]
[null,null,null,null,""]
[null,null,null,null,""]
[null,null,null,null,""]
[null,null,null,null,""]
[null,null,null,null,""]
[null,null,null,null,""]
[null,null,null,null,""]
[null,null,null,null,""]
[null,null,null,null,""]
[null,null,null,null,""]
[null,null,null,null,""]
[null,null,null,null,""]
[null,null,null,null,""]
[null,null,null,null,""]
[null,null,null,null,""]
[null,null,null,null,""]
[null,null,null,null,""]
[null,null,null,null,""]
[null,null,null,null,""]
[null,null,null,null,""]
[null,null,null,null,""]
[null,null,null,null,""]
[null,null,null,null,""]
[null,null,null,null,""]
[null,null,null,null,""]
[null,null,null,null,""]
[null,null,null,null,""]
[null,null,null,null,""]
[null,null,null,null,""]
[null,null,null,null,""]
[null,null,null,null,""]
[null,null,null,null,""]
[null,null,null,null,""]
[null,null,null,null,""]
[null,null,null,null,""]
[null,null,null,null,""]
[null,null,null,null,""]
[null,null,null,null,""]
[null,null,null,null,""]
[null,null,null,null,""]
[null,null,null,null,""]
[null,null,null,null,""]
[null,null,null,null,""]
[null,null,null,null,""]
[null,null,null,null,""]
[null,null,null,null,""]
[null,null,null,null,""]
[null,null,null,null,""]
[null,null,null,null,""]
[null,null,null,null,""]
[null,null,null,null,""]
[null,null,null,null,""]
[null,null,null,null,""]
[null,null,null,null,""]
[null,null,null,null,""]
[null,null,null,null,""]
[null,null,null,null,""]
[null,null,null,null,""]
[null,null,null,null,""]
[null,null,null,null,""]
[null,null,null,null,""]
[null,null,null,null,""]
[null,null,null,null,""]
[null,null,null,null,""]
[null,null,null,null,""]
[null,null,null,null,""]
[null,null,null,null,""]
[null,null,null,null,""]
[null,null,null,null,""]
[null,null,null,null,""]
[null,null,null,null,""]
[null,null,null,null,""]
[null,null,null,null,""]
[null,null,null,null,""]
[null,null,null,null,""]
[null,null,null,null,""]
[null,null,null,null,""]
[null,null,null,null,""]
[null,null,null,null,""]
[null,null,null,null,""]
[null,null,null,null,""]
[null,null,null,null,""]
[null,null,null,null,""]
[null,null,null,null,""]
[null,null,null,null,""]
[null,null,null,null,""]
[null,null,null,null,""]
[null,null,null,null,""]
[null,null,null,null,""]
[null,null,null,null,""]
[null,null,null,null,""]
[null,null,null,null,""]
[null,null,null,null,""]
[null,null,null,null,""]
[null,null,null,null,""]
[null,null,null,null,""]
[null,null,null,null,""]
[null,null,null,null,""]
[null,null,null,null,""]
[null,null,null,null,""]
[null,null,null,null,""]
[null,null,null,null,""]
[null,null,null,null,""]
[null,null,null,null,""]
[null,null,null,null,""]
[null,null,null,null,""]
[null,null,null,null,""]
[null,null,null,null,""]
[null,null,null,null,""]
[null,null,null,null,""]
[null,null,null,null,""]
[null,null,null,null,""]
[null,null,null,null,""]
[null,null,null,null,""]
[null,null,null,null,""]
[null,null,null,null,""]
[null,null,null,null,""]
[null,null,null,null,""]
[null,null,null,null,""]
[null,null,null,null,""]
[null,null,null,null,""]
[null,null,null,null,""]
[null,null,null,null,""]
[null,null,null,null,""]
[null,null,null,null,""]
[null,null,null,null,""]
[null,null,null,null,""]
[null,null,null,null,""]
[null,null,null,null,""]
[null,null,null,null,""]
[null,null,null,null,""]
[null,null,null,null,""]
[null,null,null,null,""]
[null,null,null,null,""]
[null,null,null,null,""]
[null,null,null,null,""]
[null,null,null,null,""]
[null,null,null,null,""]
[null,null,null,null,""]
[null,null,null,null,""]
[null,null,null,null,""]
[null,null,null,null,""]
[null,null,null,null,""]
[null,null,null,null,""]
[null,null,null,null,""]
[null,null,null,null,""]
[null,null,null,null,""]
[null,null,null,null,""]
[null,null,null,null,""]
[null,null,null,null,""]
[null,null,null,null,""]
[null,null,null,null,""]
[null,null,null,null,""]
[null,null,null,null,""]
[null,null,null,null,""]
[null,null,null,null,""]
[null,null,null,null,""]
[null,null,null,null,""]
[null,null,null,null,""]
[null,null,null,null,""]
[null,null,null,null,""]
[null,null,null,null,""]
[null,null,null,null,""]
[null,null,null,null,""]
[null,null,null,null,""]
[null,null,null,null,""]
[null,null,null,null,""]
[null,null,null,null,""]
[null,null,null,null,""]
[null,null,null,null,""]
[null,null,null,null,""]
[null,null,null,null,""]
[null,null,null,null,""]
[null,null,null,null,""]
[null,null,null,null,""]
[null,null,null,null,""]
[null,null,null,null,""]
[null,null,null,null,""]
[null,null,null,null,""]
[null,null,null,null,""]
[null,null,null,null,""]
[null,null,null,null,""]
[null,null,null,null,""]
[null,null,null,null,""]
[null,null,null,null,""]
[null,null,null,null,""]
[null,null,null,null,""]
[null,null,null,null,""]
[null,null,null,null,""]
[null,null,null,null,""]
[null,null,null,null,""]
[null,null,null,null,""]
[null,null,null,null,""]
[null,null,null,null,""]
[null,null,null,null,""]
[null,null,null,null,""]
[null,null,null,null,""]
[null,null,null,null,""]
[null,null,null,null,""]
[null,null,null,null,""]
[null,null,null,null,""]
[null,null,null,null,""]
[null,null,null,null,""]
[null,null,null,null,""]
[null,null,null,null,""]
[null,null,null,null,""]
[null,null,null,null,""]
[null,null,null,null,""]
[null,null,null,null,""]
[null,null,null,null,""]
[null,null,null,null,""]
[null,null,null,null,""]
[null,null,null,null,""]
[null,null,null,null,""]
[null,null,null,null,""]
[null,null,null,null,""]
[null,null,null,null,""]
[null,null,null,null,""]
[null,null,null,null,""]
[null,null,null,null,""]
[null,null,null,null,""]
[null,null,null,null,""]
[null,null,null,null,""]
[null,null,null,null,""]
[null,null,null,null,""]
[null,null,null,null,""]
[null,null,null,null,""]
[null,null,null,null,""]
[null,null,null,null,""]
[null,null,null,null,""]
[null,null,null,null,""]
[null,null,null,null,""]
[null,null,null,null,""]
[null,null,null,null,""]
[null,null,null,null,""]
[null,null,null,null,""]
[null,null,null,null,""]
[null,null,null,null,""]
[null,null,null,null,""]
[null,null,null,null,""]
[null,null,null,null,""]
[null,null,null,null,""]
[null,null,null,null,""]
[null,null,null,null,""]
[null,null,null,null,""]
[null,null,null,null,""]
[null,null,null,null,""]
[null,null,null,null,""]
[null,null,null,null,""]
[null,null,null,null,""]
[null,null,null,null,""]
[null,null,null,null,""]
[null,null,null,null,""]
[null,null,null,null,""]
[null,null,null,null,""]
[null,null,null,null,""]
[null,null,null,null,""]
[null,null,null,null,""]
[null,null,null,null,""]
[null,null,null,null,""]
[null,null,null,null,""]
[null,null,null,null,""]
[864,"Fichtner","Maria","26.008.1992",{"$error":"#NUM!"},"","Im Seefeld ",null,"82387 Antdorf","x",null,"x","x","x",null,null,null,null,null,null,null,"2016","Firstlady","","",""]
[865,"","","01.01.1991",null,"","",null,"","x","x","x","x","x",null,null,null,null,null,"x",null,"","","","",""]
[]
[]
[]
[]
[]
[]
[]
[]
[]
[]
[]
[]
[]
[]
[]
[]
[]
[]
[]
[]
[]
[]
[]
[]
[]
[]
[]
[]
[]
[]
[]
[]
[]
[]
[]
[]
[]
[]
[]
[]
[]
[]
[]
[]
[]
[]
[]
[]
[]
[]
[]
[]
[]
[]
[]
[]
[]
[]
[]
[]
[]
[]
[]
[]
[]
[]
[]
[]
[]
[]
[]
[]
[]
[]
[]
[]
[]
[]
[]
[]
[]
[]
[]
[]
[]
[]
[]
[]
[]
[]
[]
[]
[]
[]
[]
[]
[]
[]
[]
[]
[]
[]
[]
[]
[]
[]
[]
[]
[]
[]
[]
[]
[]
[]
[]
[]
[]
[]
[]
[]
[]
[]
[]
[]
[null,null,null,null,null,null,null,null,null,null,null,null,null,null,null,null,null,null,null,null,null,null,null,null,null,null,""]

{"sheet":"Buam","index":5,"n_rows":1047,"n_cols":37,"rows_kept":1047,"cut":false,"hidden":false,"merged":[[0,22,0,23],[0,24,0,25],[0,26,0,27]]}
["Nr.","Name","Vorname","Geburtstag",{"$f":"Deckblatt!B4","v":"2020-12-31"},"Telefon","Straße","PLZ","Ort","JG","PG","VT","SG","VM","BS","SG","MU","TH","MK","BA","PA","Eintrittsjahr",null,null,null,null,null,null,"(Bezeichnung eintragen)","(Bezeichnung eintragen)","(Bezeichnung eintragen)"]
[]
[]
[]
[]
[]
[]
[]
[]
[]
[]
[]
[]
[]
[]
[]
[]
[]
[]
[]
[]
[]
[]
[]
[]
[]
[]
[]
[]
[]
[]
[]
[]
[]
[]
[]
[]
[]
[]
[]
[]
[]
[]
[]
[]
[]
[]
[]
[]
[]
[]
[]
[]
[]
[]
[]
[]
[]
[]
[]
[]
[]
[]
[]
[]
[]
[]
[]
[]
[]
[]
[]
[]
[]
[]
[]
[]
[]
[]
[]
[]
[]
[]
[]
[]
[]
[]
[]
[]
[]
[]
[]
[]
[]
[]
[]
[]
[]
[]
[]
[]
[]
[]
[]
[]
[]
[]
[]
[]
[]
[]
[]
[]
[]
[]
[]
[]
[]
[]
[]
[]
[]
[]
[]
[]
[]
[]
[]
[]
[]
[]
[]
[]
[]
[]
[]
[]
[]
[]
[]
[]
[]
[]
[]
[]
[]
[]
[]
[]
[]
[]
[]
[]
[]
[]
[]
[]
[]
[]
[]
[]
[]
[]
[]
[]
[]
[]
[]
[]
[]
[]
[]
[]
[]
[]
[]
[]
[]
[]
[]
[]
[]
[]
[]
[]
[]
[]
[]
[]
[]
[]
[]
[]
[]
[]
[]
[]
[]
[]
[]
[null,null,null,null,""]
[null,null,null,null,""]
[null,null,null,null,""]
[null,null,null,null,""]
[null,null,null,null,""]
[null,null,null,null,""]
[null,null,null,null,""]
[null,null,null,null,""]
[null,null,null,null,""]
[null,null,null,null,""]
[null,null,null,null,""]
[null,null,null,null,""]
[null,null,null,null,""]
[null,null,null,null,""]
[null,null,null,null,""]
[null,null,null,null,""]
[null,null,null,null,""]
[null,null,null,null,""]
[null,null,null,null,""]
[null,null,null,null,""]
[null,null,null,null,""]
[null,null,null,null,""]
[null,null,null,null,""]
[null,null,null,null,""]
[null,null,null,null,""]
[null,null,null,null,""]
[null,null,null,null,""]
[null,null,null,null,""]
[null,null,null,null,""]
[null,null,null,null,""]
[null,null,null,null,""]
[null,null,null,null,""]
[null,null,null,null,""]
[null,null,null,null,""]
[null,null,null,null,""]
[null,null,null,null,""]
[null,null,null,null,""]
[null,null,null,null,""]
[null,null,null,null,""]
[null,null,null,null,""]
[null,null,null,null,""]
[null,null,null,null,""]
[null,null,null,null,""]
[null,null,null,null,""]
[null,null,null,null,""]
[null,null,null,null,""]
[null,null,null,null,""]
[null,null,null,null,""]
[null,null,null,null,""]
[null,null,null,null,""]
[null,null,null,null,""]
[null,null,null,null,""]
[null,null,null,null,""]
[null,null,null,null,""]
[null,null,null,null,""]
[null,null,null,null,""]
[null,null,null,null,""]
[null,null,null,null,""]
[null,null,null,null,""]
[null,null,null,null,""]
[null,null,null,null,""]
[null,null,null,null,""]
[null,null,null,null,""]
[null,null,null,null,""]
[null,null,null,null,""]
[null,null,null,null,""]
[null,null,null,null,""]
[null,null,null,null,""]
[null,null,null,null,""]
[null,null,null,null,""]
[null,null,null,null,""]
[null,null,null,null,""]
[null,null,null,null,""]
[null,null,null,null,""]
[null,null,null,null,""]
[null,null,null,null,""]
[null,null,null,null,""]
[null,null,null,null,""]
[null,null,null,null,""]
[null,null,null,null,""]
[null,null,null,null,""]
[null,null,null,null,""]
[null,null,null,null,""]
[null,null,null,null,""]
[null,null,null,null,""]
[null,null,null,null,""]
[null,null,null,null,""]
[null,null,null,null,""]
[null,null,null,null,""]
[null,null,null,null,""]
[null,null,null,null,""]
[null,null,null,null,""]
[null,null,null,null,""]
[null,null,null,null,""]
[null,null,null,null,""]
[null,null,null,null,""]
[null,null,null,null,""]
[null,null,null,null,""]
[null,null,null,null,""]
[null,null,null,null,""]
[null,null,null,null,""]
[null,null,null,null,""]
[null,null,null,null,""]
[null,null,null,null,""]
[null,null,null,null,""]
[null,null,null,null,""]
[null,null,null,null,""]
[null,null,null,null,""]
[null,null,null,null,""]
[null,null,null,null,""]
[null,null,null,null,""]
[null,null,null,null,""]
[null,null,null,null,""]
[null,null,null,null,""]
[null,null,null,null,""]
[null,null,null,null,""]
[null,null,null,null,""]
[null,null,null,null,""]
[null,null,null,null,""]
[null,null,null,null,""]
[null,null,null,null,""]
[null,null,null,null,""]
[null,null,null,null,""]
[null,null,null,null,""]
[null,null,null,null,""]
[null,null,null,null,""]
[null,null,null,null,""]
[null,null,null,null,""]
[null,null,null,null,""]
[null,null,null,null,""]
[null,null,null,null,""]
[null,null,null,null,""]
[null,null,null,null,""]
[null,null,null,null,""]
[null,null,null,null,""]
[null,null,null,null,""]
[null,null,null,null,""]
[null,null,null,null,""]
[null,null,null,null,""]
[null,null,null,null,""]
[null,null,null,null,""]
[null,null,null,null,""]
[null,null,null,null,""]
[null,null,null,null,""]
[null,null,null,null,""]
[null,null,null,null,""]
[null,null,null,null,""]
[null,null,null,null,""]
[null,null,null,null,""]
[null,null,null,null,""]
[null,null,null,null,""]
[null,null,null,null,""]
[null,null,null,null,""]
[null,null,null,null,""]
[null,null,null,null,""]
[null,null,null,null,""]
[null,null,null,null,""]
[null,null,null,null,""]
[null,null,null,null,""]
[null,null,null,null,""]
[null,null,null,null,""]
[null,null,null,null,""]
[null,null,null,null,""]
[null,null,null,null,""]
[null,null,null,null,""]
[null,null,null,null,""]
[null,null,null,null,""]
[null,null,null,null,""]
[null,null,null,null,""]
[null,null,null,null,""]
[null,null,null,null,""]
[null,null,null,null,""]
[null,null,null,null,""]
[null,null,null,null,""]
[null,null,null,null,""]
[null,null,null,null,""]
[null,null,null,null,""]
[null,null,null,null,""]
[null,null,null,null,""]
[null,null,null,null,""]
[null,null,null,null,""]
[null,null,null,null,""]
[null,null,null,null,""]
[null,null,null,null,""]
[null,null,null,null,""]
[null,null,null,null,""]
[null,null,null,null,""]
[null,null,null,null,""]
[null,null,null,null,""]
[null,null,null,null,""]
[null,null,null,null,""]
[null,null,null,null,""]
[null,null,null,null,""]
[null,null,null,null,""]
[null,null,null,null,""]
[null,null,null,null,""]
[null,null,null,null,""]
[null,null,null,null,""]
[null,null,null,null,""]
[null,null,null,null,""]
[null,null,null,null,""]
[null,null,null,null,""]
[null,null,null,null,""]
[null,null,null,null,""]
[null,null,null,null,""]
[null,null,null,null,""]
[null,null,null,null,""]
[null,null,null,null,""]
[null,null,null,null,""]
[null,null,null,null,""]
[null,null,null,null,""]
[null,null,null,null,""]
[null,null,null,null,""]
[null,null,null,null,""]
[null,null,null,null,""]
[null,null,null,null,""]
[null,null,null,null,""]
[null,null,null,null,""]
[null,null,null,null,""]
[null,null,null,null,""]
[null,null,null,null,""]
[null,null,null,null,""]
[null,null,null,null,""]
[null,null,null,null,""]
[null,null,null,null,""]
[null,null,null,null,""]
[null,null,null,null,""]
[null,null,null,null,""]
[null,null,null,null,""]
[null,null,null,null,""]
[null,null,null,null,""]
[null,null,null,null,""]
[null,null,null,null,""]
[null,null,null,null,""]
[null,null,null,null,""]
[null,null,null,null,""]
[null,null,null,null,""]
[null,null,null,null,""]
[null,null,null,null,""]
[null,null,null,null,""]
[null,null,null,null,""]
[null,null,null,null,""]
[null,null,null,null,""]
[null,null,null,null,""]
[null,null,null,null,""]
[null,null,null,null,""]
[null,null,null,null,""]
[null,null,null,null,""]
[null,null,null,null,""]
[null,null,null,null,""]
[null,null,null,null,""]
[null,null,null,null,""]
[null,null,null,null,""]
[null,null,null,null,""]
[null,null,null,null,""]
[null,null,null,null,""]
[null,null,null,null,""]
[null,null,null,null,""]
[null,null,null,null,""]
[null,null,null,null,""]
[null,null,null,null,""]
[null,null,null,null,""]
[null,null,null,null,""]
[null,null,null,null,""]
[null,null,null,null,""]
[null,null,null,null,""]
[null,null,null,null,""]
[null,null,null,null,""]
[null,null,null,null,""]
[null,null,null,null,""]
[null,null,null,null,""]
[null,null,null,null,""]
[null,null,null,null,""]
[null,null,null,null,""]
[null,null,null,null,""]
[null,null,null,null,""]
[null,null,null,null,""]
[null,null,null,null,""]
[null,null,null,null,""]
[null,null,null,null,""]
[null,null,null,null,""]
[null,null,null,null,""]
[null,null,null,null,""]
[null,null,null,null,""]
[null,null,null,null,""]
[null,null,null,null,""]
[null,null,null,null,""]
[null,null,null,null,""]
[null,null,null,null,""]
[null,null,null,null,""]
[null,null,null,null,""]
[null,null,null,null,""]
[null,null,null,null,""]
[null,null,null,null,""]
[null,null,null,null,""]
[null,null,null,null,""]
[null,null,null,null,""]
[null,null,null,null,""]
[null,null,null,null,""]
[null,null,null,null,""]
[null,null,null,null,""]
[null,null,null,null,""]
[null,null,null,null,""]
[null,null,null,null,""]
[null,null,null,null,""]
[null,null,null,null,""]
[null,null,null,null,""]
[null,null,null,null,""]
[null,null,null,null,""]
[null,null,null,null,""]
[null,null,null,null,""]
[null,null,null,null,""]
[null,null,null,null,""]
[null,null,null,null,""]
[null,null,null,null,""]
[null,null,null,null,""]
[null,null,null,null,""]
[null,null,null,null,""]
[null,null,null,null,""]
[null,null,null,null,""]
[null,null,null,null,""]
[null,null,null,null,""]
[null,null,null,null,""]
[null,null,null,null,""]
[null,null,null,null,""]
[null,null,null,null,""]
[null,null,null,null,""]
[null,null,null,null,""]
[null,null,null,null,""]
[null,null,null,null,""]
[null,null,null,null,""]
[null,null,null,null,""]
[null,null,null,null,""]
[null,null,null,null,""]
[null,null,null,null,""]
[null,null,null,null,""]
[null,null,null,null,""]
[null,null,null,null,""]
[null,null,null,null,""]
[null,null,null,null,""]
[null,null,null,null,""]
[null,null,null,null,""]
[null,null,null,null,""]
[null,null,null,null,""]
[null,null,null,null,""]
[null,null,null,null,""]
[null,null,null,null,""]
[null,null,null,null,""]
[null,null,null,null,""]
[null,null,null,null,""]
[null,null,null,null,""]
[null,null,null,null,""]
[null,null,null,null,""]
[null,null,null,null,""]
[null,null,null,null,""]
[null,null,null,null,""]
[null,null,null,null,""]
[null,null,null,null,""]
[null,null,null,null,""]
[null,null,null,null,""]
[null,null,null,null,""]
[null,null,null,null,""]
[null,null,null,null,""]
[null,null,null,null,""]
[null,null,null,null,""]
[null,null,null,null,""]
[null,null,null,null,""]
[null,null,null,null,""]
[null,null,null,null,""]
[null,null,null,null,""]
[null,null,null,null,""]
[null,null,null,null,""]
[null,null,null,null,""]
[null,null,null,null,""]
[null,null,null,null,""]
[null,null,null,null,""]
[null,null,null,null,""]
[null,null,null,null,""]
[null,null,null,null,""]
[null,null,null,null,""]
[null,null,null,null,""]
[null,null,null,null,""]
[null,null,null,null,""]
[null,null,null,null,""]
[null,null,null,null,""]
[null,null,null,null,""]
[null,null,null,null,""]
[null,null,null,null,""]
[null,null,null,null,""]
[null,null,null,null,""]
[null,null,null,null,""]
[null,null,null,null,""]
[null,null,null,null,""]
[null,null,null,null,""]
[null,null,null,null,""]
[null,null,null,null,""]
[null,null,null,null,""]
[null,null,null,null,""]
[null,null,null,null,""]
[null,null,null,null,""]
[null,null,null,null,""]
[null,null,null,null,""]
[null,null,null,null,""]
[null,null,null,null,""]
[null,null,null,null,""]
[null,null,null,null,""]
[null,null,null,null,""]
[null,null,null,null,""]
[null,null,null,null,""]
[null,null,null,null,""]
[null,null,null,null,""]
[null,null,null,null,""]
[null,null,null,null,""]
[null,null,null,null,""]
[null,null,null,null,""]
[null,null,null,null,""]
[null,null,null,null,""]
[null,null,null,null,""]
[null,null,null,null,""]
[null,null,null,null,""]
[null,null,null,null,""]
[null,null,null,null,""]
[null,null,null,null,""]
[null,null,null,null,""]
[null,null,null,null,""]
[null,null,null,null,""]
[null,null,null,null,""]
[null,null,null,null,""]
[null,null,null,null,""]
[null,null,null,null,""]
[null,null,null,null,""]
[null,null,null,null,""]
[null,null,null,null,""]
[null,null,null,null,""]
[null,null,null,null,""]
[null,null,null,null,""]
[null,null,null,null,""]
[null,null,null,null,""]
[null,null,null,null,""]
[null,null,null,null,""]
[null,null,null,null,""]
[null,null,null,null,""]
[null,null,null,null,""]
[null,null,null,null,""]
[null,null,null,null,""]
[null,null,null,null,""]
[null,null,null,null,""]
[null,null,null,null,""]
[null,null,null,null,""]
[null,null,null,null,""]
[null,null,null,null,""]
[null,null,null,null,""]
[null,null,null,null,""]
[null,null,null,null,""]
[null,null,null,null,""]
[null,null,null,null,""]
[null,null,null,null,""]
[null,null,null,null,""]
[null,null,null,null,""]
[null,null,null,null,""]
[null,null,null,null,""]
[null,null,null,null,""]
[null,null,null,null,""]
[null,null,null,null,""]
[null,null,null,null,""]
[null,null,null,null,""]
[null,null,null,null,""]
[null,null,null,null,""]
[null,null,null,null,""]
[null,null,null,null,""]
[null,null,null,null,""]
[null,null,null,null,""]
[null,null,null,null,""]
[null,null,null,null,""]
[null,null,null,null,""]
[null,null,null,null,""]
[null,null,null,null,""]
[null,null,null,null,""]
[null,null,null,null,""]
[null,null,null,null,""]
[null,null,null,null,""]
[null,null,null,null,""]
[null,null,null,null,""]
[null,null,null,null,""]
[null,null,null,null,""]
[null,null,null,null,""]
[null,null,null,null,""]
[null,null,null,null,""]
[null,null,null,null,""]
[null,null,null,null,""]
[null,null,null,null,""]
[null,null,null,null,""]
[null,null,null,null,""]
[null,null,null,null,""]
[null,null,null,null,""]
[null,null,null,null,""]
[null,null,null,null,""]
[null,null,null,null,""]
[null,null,null,null,""]
[null,null,null,null,""]
[null,null,null,null,""]
[null,null,null,null,""]
[null,null,null,null,""]
[null,null,null,null,""]
[null,null,null,null,""]
[null,null,null,null,""]
[null,null,null,null,""]
[null,null,null,null,""]
[null,null,null,null,""]
[null,null,null,null,""]
[null,null,null,null,""]
[null,null,null,null,""]
[null,null,null,null,""]
[null,null,null,null,""]
[null,null,null,null,""]
[null,null,null,null,""]
[null,null,null,null,""]
[null,null,null,null,""]
[null,null,null,null,""]
[null,null,null,null,""]
[null,null,null,null,""]
[null,null,null,null,""]
[null,null,null,null,""]
[null,null,null,null,""]
[null,null,null,null,""]
[null,null,null,null,""]
[null,null,null,null,""]
[null,null,null,null,""]
[null,null,null,null,""]
[null,null,null,null,""]
[null,null,null,null,""]
[null,null,null,null,""]
[null,null,null,null,""]
[null,null,null,null,""]
[null,null,null,null,""]
[null,null,null,null,""]
[null,null,null,null,""]
[null,null,null,null,""]
[null,null,null,null,""]
[null,null,null,null,""]
[null,null,null,null,""]
[null,null,null,null,""]
[null,null,null,null,""]
[null,null,null,null,""]
[null,null,null,null,""]
[null,null,null,null,""]
[null,null,null,null,""]
[null,null,null,null,""]
[null,null,null,null,""]
[null,null,null,null,""]
[null,null,null,null,""]
[null,null,null,null,""]
[null,null,null,null,""]
[null,null,null,null,""]
[null,null,null,null,""]
[null,null,null,null,""]
[null,null,null,null,""]
[null,null,null,null,""]
[null,null,null,null,""]
[null,null,null,null,""]
[null,null,null,null,""]
[null,null,null,null,""]
[null,null,null,null,""]
[null,null,null,null,""]
[null,null,null,null,""]
[null,null,null,null,""]
[null,null,null,null,""]
[null,null,null,null,""]
[null,null,null,null,""]
[null,null,null,null,""]
[null,null,null,null,""]
[null,null,null,null,""]
[null,null,null,null,""]
[null,null,null,null,""]
[null,null,null,null,""]
[null,null,null,null,""]
[null,null,null,null,""]
[null,null,null,null,""]
[null,null,null,null,""]
[null,null,null,null,""]
[null,null,null,null,""]
[null,null,null,null,""]
[null,null,null,null,""]
[null,null,null,null,""]
[null,null,null,null,""]
[null,null,null,null,""]
[null,null,null,null,""]
[null,null,null,null,""]
[null,null,null,null,""]
[null,null,null,null,""]
[null,null,null,null,""]
[null,null,null,null,""]
[null,null,null,null,""]
[null,null,null,null,""]
[null,null,null,null,""]
[null,null,null,null,""]
[null,null,null,null,""]
[null,null,null,null,""]
[null,null,null,null,""]
[null,null,null,null,""]
[null,null,null,null,""]
[null,null,null,null,""]
[null,null,null,null,""]
[null,null,null,null,""]
[null,null,null,null,""]
[null,null,null,null,""]
[null,null,null,null,""]
[null,null,null,null,""]
[null,null,null,null,""]
[null,null,null,null,""]
[null,null,null,null,""]
[null,null,null,null,""]
[null,null,null,null,""]
[null,null,null,null,""]
[null,null,null,null,""]
[null,null,null,null,""]
[null,null,null,null,""]
[null,null,null,null,""]
[null,null,null,null,""]
[null,null,null,null,""]
[null,null,null,null,""]
[null,null,null,null,""]
[null,null,null,null,""]
[null,null,null,null,""]
[null,null,null,null,""]
[null,null,null,null,""]
[null,null,null,null,""]
[null,null,null,null,""]
[null,null,null,null,""]
[null,null,null,null,""]
[null,null,null,null,""]
[null,null,null,null,""]
[null,null,null,null,""]
[null,null,null,null,""]
[null,null,null,null,""]
[null,null,null,null,""]
[null,null,null,null,""]
[null,null,null,null,""]
[null,null,null,null,""]
[null,null,null,null,""]
[null,null,null,null,""]
[null,null,null,null,""]
[null,null,null,null,""]
[null,null,null,null,""]
[null,null,null,null,""]
[null,null,null,null,""]
[null,null,null,null,""]
[null,null,null,null,""]
[null,null,null,null,""]
[null,null,null,null,""]
[null,null,null,null,""]
[null,null,null,null,""]
[null,null,null,null,""]
[null,null,null,null,null,null,null,null,null,null,null,null,null,null,null,null,null,null,null,null,null,null,null,null,null,"",null,"",""]
[null,null,null,null,null,null,null,null,null,null,null,null,null,null,null,null,null,null,null,null,null,null,null,null,null,"",null,"",""]
[]
[]
[]
[]
[]
[]
[]
[]
[]
[]
[]
[]
[]
[]
[]
[]
[]
[]
[]
[]
[]
[]
[]
[]
[]
[]
[]
[]
[]
[]
[]
[]
[]
[]
[]
[]
[]
[]
[]
[]
[]
[]
[]
[]
[]
[]
[]
[]
[]
[]
[]
[]
[]
[]
[]
[]
[]
[]
[]
[]
[]
[]
[]
[]
[]
[]
[]
[]
[]
[]
[]
[]
[]
[]
[]
[]
[]
[]
[]
[]
[]
[]
[]
[]
[]
[]
[]
[]
[]
[]
[]
[]
[]
[]
[]
[]
[]
[]
[]
[]
[]
[]
[]
[]
[]
[]
[]
[]
[]
[]
[]
[]
[]
[]
[]
[]
[]
[]
[]
[]
[]
[]
[]
[]
[null,null,null,null,null,null,null,null,null,null,null,null,null,null,null,null,null,null,null,null,null,null,null,null,null,null,null,null,null,""]
[]
[]
[]
[]
[]
[]
[]
[]
[]
[]
[]
[]
[]
[]
[]
[]
[]
[]
[]
[]
[]
[]
[]
[]
[]
[]
[]
[]
[]
[]
[]
[]
[]
[]
[]
[]
[]
[]
[]
[]
[]
[]
[]
[]
[]
[]
[]
[]
[]
[]
[]
[]
[]
[]
[]
[]
[null,null,null,null,null,null,null,null,null,null,null,null,null,null,null,null,null,null,null,null,null,null,null,null,null,null,null,null,null,null,null,null,null,null,null,null,"Name"]
[null,null,null,null,null,null,null,null,null,null,null,null,null,null,null,null,null,null,null,null,null,null,null,null,null,null,null,null,null,null,null,null,null,null,null,null,"Vorname"]
[null,null,null,null,null,null,null,null,null,null,null,null,null,null,null,null,null,null,null,null,null,null,null,null,null,null,null,null,null,null,null,null,null,null,null,null,"Alter"]
[null,null,null,null,null,null,null,null,null,null,null,null,null,null,null,null,null,null,null,null,null,null,null,null,null,null,null,null,null,null,null,null,null,null,null,null,"PLZ"]
[null,null,null,null,null,null,null,null,null,null,null,null,null,null,null,null,null,null,null,null,null,null,null,null,null,null,null,null,null,null,null,null,null,null,null,null,"Eintrittsjahr"]
[null,null,null,null,null,null,null,null,null,null,null,null,null,null,null,null,null,null,null,null,null,null,null,null,null,null,null,null,null,null,null,null,null,null,null,null,"Sonstiges 1"]
[null,null,null,null,null,null,null,null,null,null,null,null,null,null,null,null,null,null,null,null,null,null,null,null,null,null,null,null,null,null,null,null,null,null,null,null,"Sonstiges 2"]
[null,null,null,null,null,null,null,null,null,null,null,null,null,null,null,null,null,null,null,null,null,null,null,null,null,null,null,null,null,null,null,null,null,null,null,null,"Sonstiges 3"]
[null,null,null,null,null,null,null,null,null,null,null,null,null,null,null,null,null,null,null,null,null,null,null,null,null,null,null,null,null,null,null,null,null,null,null,null,"Zusätzlich I"]
[null,null,null,null,null,null,null,null,null,null,null,null,null,null,null,null,null,null,null,null,null,null,null,null,null,null,null,null,null,null,null,null,null,null,null,null,"Zusätzlich II"]
[null,null,null,null,null,null,null,null,null,null,null,null,null,null,null,null,null,null,null,null,null,null,null,null,null,null,null,null,null,null,null,null,null,null,null,null,"Zusätzlich III"]

{"sheet":"Jugendleiter","index":6,"n_rows":1388,"n_cols":20,"rows_kept":1388,"cut":false,"hidden":false,"merged":[]}
[" Nr.","Name","Vorname","Straße","PLZ, Ort","Telefon","Email","Amt im Verein ","Geburtstag",{"$f":"Deckblatt!B4","v":"2020-12-31"},"Jugendleiter grundschulung Teil I","Jugendleiter grundschulung Teil II","Erste-Hilfe-Kurs","JULEICA Nr.","JULEICA       gültig bis",null,"(Bezeichnung eintragen)","(Bezeichnung eintragen)",{"$f":"Erhebungsbogen!I2","v":"(Vereinsort eintragen)"},{"$f":"Erhebungsbogen!K1","v":"2020"}]
[]
[]
[]
[]
[]
[]
[]
[]
[]
[]
[]
[]
[]
[]
[]
[]
[]
[]
[]
[]
[]
[]
[]
[]
[]
[]
[]
[]
[]
[]
[]
[]
[]
[]
[]
[]
[]
[]
[]
[]
[]
[]
[]
[]
[]
[]
[]
[]
[]
[]
[]
[]
[]
[]
[]
[]
[]
[]
[]
[]
[]
[]
[]
[]
[]
[]
[]
[]
[]
[]
[]
[]
[]
[]
[]
[]
[]
[]
[]
[]
[]
[]
[]
[]
[]
[]
[]
[]
[]
[]
[]
[]
[]
[]
[]
[]
[]
[]
[]
[null,null,null,null,null,null,null,null,null,""]
[null,null,null,null,null,null,null,null,null,""]
[null,null,null,null,null,null,null,null,null,""]
[null,null,null,null,null,null,null,null,null,""]
[null,null,null,null,null,null,null,null,null,""]
[null,null,null,null,null,null,null,null,null,""]
[null,null,null,null,null,null,null,null,null,""]
[null,null,null,null,null,null,null,null,null,""]
[null,null,null,null,null,null,null,null,null,""]
[null,null,null,null,null,null,null,null,null,""]
[null,null,null,null,null,null,null,null,null,""]
[null,null,null,null,null,null,null,null,null,""]
[null,null,null,null,null,null,null,null,null,""]
[null,null,null,null,null,null,null,null,null,""]
[null,null,null,null,null,null,null,null,null,""]
[null,null,null,null,null,null,null,null,null,""]
[null,null,null,null,null,null,null,null,null,""]
[null,null,null,null,null,null,null,null,null,""]
[null,null,null,null,null,null,null,null,null,""]
[null,null,null,null,null,null,null,null,null,""]
[null,null,null,null,null,null,null,null,null,""]
[null,null,null,null,null,null,null,null,null,""]
[null,null,null,null,null,null,null,null,null,""]
[null,null,null,null,null,null,null,null,null,""]
[null,null,null,null,null,null,null,null,null,""]
[null,null,null,null,null,null,null,null,null,""]
[null,null,null,null,null,null,null,null,null,""]
[null,null,null,null,null,null,null,null,null,""]
[null,null,null,null,null,null,null,null,null,""]
[null,null,null,null,null,null,null,null,null,""]
[null,null,null,null,null,null,null,null,null,""]
[null,null,null,null,null,null,null,null,null,""]
[null,null,null,null,null,null,null,null,null,"",null,null,null,null,null,""]
[null,null,null,null,null,null,null,null,null,"",null,null,null,null,null,""]
[null,null,null,null,null,null,null,null,null,"",null,null,null,null,null,""]
[null,null,null,null,null,null,null,null,null,"",null,null,null,null,null,""]
[null,null,null,null,null,null,null,null,null,"",null,null,null,null,null,""]
[null,null,null,null,null,null,null,null,null,"",null,null,null,null,null,""]
[null,null,null,null,null,null,null,null,null,"",null,null,null,null,null,""]
[null,null,null,null,null,null,null,null,null,"",null,null,null,null,null,""]
[null,null,null,null,null,null,null,null,null,"",null,null,null,null,null,""]
[null,null,null,null,null,null,null,null,null,"",null,null,null,null,null,""]
[null,null,null,null,null,null,null,null,null,"",null,null,null,null,null,""]
[null,null,null,null,null,null,null,null,null,"",null,null,null,null,null,""]
[null,null,null,null,null,null,null,null,null,"",null,null,null,null,null,""]
[null,null,null,null,null,null,null,null,null,"",null,null,null,null,null,""]
[null,null,null,null,null,null,null,null,null,"",null,null,null,null,null,""]
[null,null,null,null,null,null,null,null,null,"",null,null,null,null,null,""]
[null,null,null,null,null,null,null,null,null,"",null,null,null,null,null,""]
[null,null,null,null,null,null,null,null,null,"",null,null,null,null,null,""]
[null,null,null,null,null,null,null,null,null,"",null,null,null,null,null,""]
[null,null,null,null,null,null,null,null,null,"",null,null,null,null,null,""]
[null,null,null,null,null,null,null,null,null,"",null,null,null,null,null,""]
[null,null,null,null,null,null,null,null,null,"",null,null,null,null,null,""]
[null,null,null,null,null,null,null,null,null,"",null,null,null,null,null,""]
[null,null,null,null,null,null,null,null,null,"",null,null,null,null,null,""]
[null,null,null,null,null,null,null,null,null,"",null,null,null,null,null,""]
[null,null,null,null,null,null,null,null,null,"",null,null,null,null,null,""]
[null,null,null,null,null,null,null,null,null,"",null,null,null,null,null,""]
[null,null,null,null,null,null,null,null,null,"",null,null,null,null,null,""]
[null,null,null,null,null,null,null,null,null,"",null,null,null,null,null,""]
[null,null,null,null,null,null,null,null,null,"",null,null,null,null,null,""]
[null,null,null,null,null,null,null,null,null,"",null,null,null,null,null,""]
[null,null,null,null,null,null,null,null,null,"",null,null,null,null,null,""]
[null,null,null,null,null,null,null,null,null,"",null,null,null,null,null,""]
[null,null,null,null,null,null,null,null,null,"",null,null,null,null,null,""]
[null,null,null,null,null,null,null,null,null,"",null,null,null,null,null,""]
[null,null,null,null,null,null,null,null,null,"",null,null,null,null,null,""]
[null,null,null,null,null,null,null,null,null,"",null,null,null,null,null,""]
[null,null,null,null,null,null,null,null,null,"",null,null,null,null,null,""]
[null,null,null,null,null,null,null,null,null,"",null,null,null,null,null,""]
[null,null,null,null,null,null,null,null,null,"",null,null,null,null,null,""]
[null,null,null,null,null,null,null,null,null,"",null,null,null,null,null,""]
[null,null,null,null,null,null,null,null,null,"",null,null,null,null,null,""]
[null,null,null,null,null,null,null,null,null,"",null,null,null,null,null,""]
[null,null,null,null,null,null,null,null,null,"",null,null,null,null,null,""]
[null,null,null,null,null,null,null,null,null,"",null,null,null,null,null,""]
[null,null,null,null,null,null,null,null,null,"",null,null,null,null,null,""]
[null,null,null,null,null,null,null,null,null,"",null,null,null,null,null,""]
[null,null,null,null,null,null,null,null,null,"",null,null,null,null,null,""]
[null,null,null,null,null,null,null,null,null,"",null,null,null,null,null,""]
[null,null,null,null,null,null,null,null,null,"",null,null,null,null,null,""]
[null,null,null,null,null,null,null,null,null,"",null,null,null,null,null,""]
[null,null,null,null,null,null,null,null,null,"",null,null,null,null,null,""]
[null,null,null,null,null,null,null,null,null,"",null,null,null,null,null,""]
[null,null,null,null,null,null,null,null,null,"",null,null,null,null,null,""]
[null,null,null,null,null,null,null,null,null,"",null,null,null,null,null,""]
[null,null,null,null,null,null,null,null,null,"",null,null,null,null,null,""]
[null,null,null,null,null,null,null,null,null,"",null,null,null,null,null,""]
[null,null,null,null,null,null,null,null,null,"",null,null,null,null,null,""]
[null,null,null,null,null,null,null,null,null,"",null,null,null,null,null,""]
[null,null,null,null,null,null,null,null,null,"",null,null,null,null,null,""]
[null,null,null,null,null,null,null,null,null,"",null,null,null,null,null,""]
[null,null,null,null,null,null,null,null,null,"",null,null,null,null,null,""]
[null,null,null,null,null,null,null,null,null,"",null,null,null,null,null,""]
[null,null,null,null,null,null,null,null,null,"",null,null,null,null,null,""]
[null,null,null,null,null,null,null,null,null,"",null,null,null,null,null,""]
[null,null,null,null,null,null,null,null,null,"",null,null,null,null,null,""]
[null,null,null,null,null,null,null,null,null,"",null,null,null,null,null,""]
[null,null,null,null,null,null,null,null,null,"",null,null,null,null,null,""]
[null,null,null,null,null,null,null,null,null,"",null,null,null,null,null,""]
[null,null,null,null,null,null,null,null,null,"",null,null,null,null,null,""]
[null,null,null,null,null,null,null,null,null,"",null,null,null,null,null,""]
[null,null,null,null,null,null,null,null,null,"",null,null,null,null,null,""]
[null,null,null,null,null,null,null,null,null,"",null,null,null,null,null,""]
[null,null,null,null,null,null,null,null,null,"",null,null,null,null,null,""]
[null,null,null,null,null,null,null,null,null,"",null,null,null,null,null,""]
[null,null,null,null,null,null,null,null,null,"",null,null,null,null,null,""]
[null,null,null,null,null,null,null,null,null,"",null,null,null,null,null,""]
[null,null,null,null,null,null,null,null,null,"",null,null,null,null,null,""]
[null,null,null,null,null,null,null,null,null,"",null,null,null,null,null,""]
[null,null,null,null,null,null,null,null,null,"",null,null,null,null,null,""]
[null,null,null,null,null,null,null,null,null,"",null,null,null,null,null,""]
[null,null,null,null,null,null,null,null,null,"",null,null,null,null,null,""]
[null,null,null,null,null,null,null,null,null,"",null,null,null,null,null,""]
[null,null,null,null,null,null,null,null,null,""]
[null,null,null,null,null,null,null,null,null,""]
[null,null,null,null,null,null,null,null,null,""]
[null,null,null,null,null,null,null,null,null,""]
[null,null,null,null,null,null,null,null,null,""]
[null,null,null,null,null,null,null,null,null,""]
[null,null,null,null,null,null,null,null,null,""]
[null,null,null,null,null,null,null,null,null,""]
[null,null,null,null,null,null,null,null,null,""]
[null,null,null,null,null,null,null,null,null,""]
[null,null,null,null,null,null,null,null,null,""]
[null,null,null,null,null,null,null,null,null,""]
[null,null,null,null,null,null,null,null,null,""]
[null,null,null,null,null,null,null,null,null,""]
[null,null,null,null,null,null,null,null,null,""]
[null,null,null,null,null,null,null,null,null,""]
[null,null,null,null,null,null,null,null,null,""]
[null,null,null,null,null,null,null,null,null,""]
[null,null,null,null,null,null,null,null,null,""]
[null,null,null,null,null,null,null,null,null,""]
[null,null,null,null,null,null,null,null,null,""]
[null,null,null,null,null,null,null,null,null,""]
[null,null,null,null,null,null,null,null,null,""]
[null,null,null,null,null,null,null,null,null,""]
[null,null,null,null,null,null,null,null,null,""]
[null,null,null,null,null,null,null,null,null,""]
[null,null,null,null,null,null,null,null,null,""]
[null,null,null,null,null,null,null,null,null,""]
[null,null,null,null,null,null,null,null,null,""]
[null,null,null,null,null,null,null,null,null,""]
[null,null,null,null,null,null,null,null,null,""]
[null,null,null,null,null,null,null,null,null,""]
[null,null,null,null,null,null,null,null,null,""]
[null,null,null,null,null,null,null,null,null,""]
[null,null,null,null,null,null,null,null,null,""]
[null,null,null,null,null,null,null,null,null,""]
[null,null,null,null,null,null,null,null,null,""]
[null,null,null,null,null,null,null,null,null,""]
[null,null,null,null,null,null,null,null,null,""]
[null,null,null,null,null,null,null,null,null,""]
[null,null,null,null,null,null,null,null,null,""]
[null,null,null,null,null,null,null,null,null,""]
[null,null,null,null,null,null,null,null,null,""]
[null,null,null,null,null,null,null,null,null,""]
[null,null,null,null,null,null,null,null,null,""]
[null,null,null,null,null,null,null,null,null,""]
[null,null,null,null,null,null,null,null,null,""]
[null,null,null,null,null,null,null,null,null,""]
[null,null,null,null,null,null,null,null,null,""]
[null,null,null,null,null,null,null,null,null,""]
[null,null,null,null,null,null,null,null,null,""]
[null,null,null,null,null,null,null,null,null,""]
[null,null,null,null,null,null,null,null,null,""]
[null,null,null,null,null,null,null,null,null,""]
[null,null,null,null,null,null,null,null,null,""]
[null,null,null,null,null,null,null,null,null,""]
[null,null,null,null,null,null,null,null,null,""]
[null,null,null,null,null,null,null,null,null,""]
[null,null,null,null,null,null,null,null,null,""]
[null,null,null,null,null,null,null,null,null,""]
[null,null,null,null,null,null,null,null,null,""]
[null,null,null,null,null,null,null,null,null,""]
[null,null,null,null,null,null,null,null,null,""]
[null,null,null,null,null,null,null,null,null,""]
[null,null,null,null,null,null,null,null,null,""]
[null,null,null,null,null,null,null,null,null,""]
[null,null,null,null,null,null,null,null,null,""]
[null,null,null,null,null,null,null,null,null,""]
[null,null,null,null,null,null,null,null,null,""]
[null,null,null,null,null,null,null,null,null,""]
[null,null,null,null,null,null,null,null,null,""]
[null,null,null,null,null,null,null,null,null,""]
[null,null,null,null,null,null,null,null,null,""]
[null,null,null,null,null,null,null,null,null,""]
[null,null,null,null,null,null,null,null,null,""]
[null,null,null,null,null,null,null,null,null,""]
[null,null,null,null,null,null,null,null,null,""]
[null,null,null,null,null,null,null,null,null,""]
[null,null,null,null,null,null,null,null,null,""]
[null,null,null,null,null,null,null,null,null,""]
[null,null,null,null,null,null,null,null,null,""]
[null,null,null,null,null,null,null,null,null,""]
[null,null,null,null,null,null,null,null,null,""]
[null,null,null,null,null,null,null,null,null,""]
[null,null,null,null,null,null,null,null,null,""]
[null,null,null,null,null,null,null,null,null,""]
[null,null,null,null,null,null,null,null,null,""]
[null,null,null,null,null,null,null,null,null,""]
[null,null,null,null,null,null,null,null,null,""]
[null,null,null,null,null,null,null,null,null,""]
[null,null,null,null,null,null,null,null,null,""]
[null,null,null,null,null,null,null,null,null,""]
[null,null,null,null,null,null,null,null,null,""]
[null,null,null,null,null,null,null,null,null,""]
[null,null,null,null,null,null,null,null,null,""]
[null,null,null,null,null,null,null,null,null,""]
[null,null,null,null,null,null,null,null,null,""]
[null,null,null,null,null,null,null,null,null,""]
[null,null,null,null,null,null,null,null,null,""]
[null,null,null,null,null,null,null,null,null,""]
[null,null,null,null,null,null,null,null,null,""]
[null,null,null,null,null,null,null,null,null,""]
[null,null,null,null,null,null,null,null,null,""]
[null,null,null,null,null,null,null,null,null,""]
[null,null,null,null,null,null,null,null,null,""]
[null,null,null,null,null,null,null,null,null,""]
[null,null,null,null,null,null,null,null,null,""]
[null,null,null,null,null,null,null,null,null,""]
[null,null,null,null,null,null,null,null,null,""]
[null,null,null,null,null,null,null,null,null,""]
[null,null,null,null,null,null,null,null,null,""]
[null,null,null,null,null,null,null,null,null,""]
[null,null,null,null,null,null,null,null,null,""]
[null,null,null,null,null,null,null,null,null,""]
[null,null,null,null,null,null,null,null,null,""]
[null,null,null,null,null,null,null,null,null,""]
[null,null,null,null,null,null,null,null,null,""]
[null,null,null,null,null,null,null,null,null,""]
[null,null,null,null,null,null,null,null,null,""]
[null,null,null,null,null,null,null,null,null,""]
[null,null,null,null,null,null,null,null,null,""]
[null,null,null,null,null,null,null,null,null,""]
[null,null,null,null,null,null,null,null,null,""]
[null,null,null,null,null,null,null,null,null,""]
[null,null,null,null,null,null,null,null,null,""]
[null,null,null,null,null,null,null,null,null,""]
[null,null,null,null,null,null,null,null,null,""]
[null,null,null,null,null,null,null,null,null,""]
[null,null,null,null,null,null,null,null,null,""]
[null,null,null,null,null,null,null,null,null,""]
[null,null,null,null,null,null,null,null,null,""]
[null,null,null,null,null,null,null,null,null,""]
[null,null,null,null,null,null,null,null,null,""]
[null,null,null,null,null,null,null,null,null,""]
[null,null,null,null,null,null,null,null,null,""]
[null,null,null,null,null,null,null,null,null,""]
[null,null,null,null,null,null,null,null,null,""]
[null,null,null,null,null,null,null,null,null,""]
[null,null,null,null,null,null,null,null,null,""]
[null,null,null,null,null,null,null,null,null,""]
[null,null,null,null,null,null,null,null,null,""]
[null,null,null,null,null,null,null,null,null,""]
[null,null,null,null,null,null,null,null,null,""]
[null,null,null,null,null,null,null,null,null,""]
[null,null,null,null,null,null,null,null,null,""]
[null,null,null,null,null,null,null,null,null,""]
[null,null,null,null,null,null,null,null,null,""]
[null,null,null,null,null,null,null,null,null,""]
[null,null,null,null,null,null,null,null,null,""]
[null,null,null,null,null,null,null,null,null,""]
[null,null,null,null,null,null,null,null,null,""]
[null,null,null,null,null,null,null,null,null,""]
[null,null,null,null,null,null,null,null,null,""]
[null,null,null,null,null,null,null,null,null,""]
[null,null,null,null,null,null,null,null,null,""]
[null,null,null,null,null,null,null,null,null,""]
[null,null,null,null,null,null,null,null,null,""]
[null,null,null,null,null,null,null,null,null,""]
[null,null,null,null,null,null,null,null,null,""]
[null,null,null,null,null,null,null,null,null,""]
[null,null,null,null,null,null,null,null,null,""]
[null,null,null,null,null,null,null,null,null,""]
[null,null,null,null,null,null,null,null,null,""]
[null,null,null,null,null,null,null,null,null,""]
[null,null,null,null,null,null,null,null,null,""]
[null,null,null,null,null,null,null,null,null,""]
[null,null,null,null,null,null,null,null,null,""]
[null,null,null,null,null,null,null,null,null,""]
[null,null,null,null,null,null,null,null,null,""]
[null,null,null,null,null,null,null,null,null,""]
[null,null,null,null,null,null,null,null,null,""]
[null,null,null,null,null,null,null,null,null,""]
[null,null,null,null,null,null,null,null,null,""]
[null,null,null,null,null,null,null,null,null,""]
[null,null,null,null,null,null,null,null,null,""]
[null,null,null,null,null,null,null,null,null,""]
[null,null,null,null,null,null,null,null,null,""]
[null,null,null,null,null,null,null,null,null,""]
[null,null,null,null,null,null,null,null,null,""]
[null,null,null,null,null,null,null,null,null,""]
[null,null,null,null,null,null,null,null,null,""]
[null,null,null,null,null,null,null,null,null,""]
[null,null,null,null,null,null,null,null,null,""]
[null,null,null,null,null,null,null,null,null,""]
[null,null,null,null,null,null,null,null,null,""]
[null,null,null,null,null,null,null,null,null,""]
[null,null,null,null,null,null,null,null,null,""]
[null,null,null,null,null,null,null,null,null,""]
[null,null,null,null,null,null,null,null,null,""]
[null,null,null,null,null,null,null,null,null,""]
[null,null,null,null,null,null,null,null,null,""]
[null,null,null,null,null,null,null,null,null,""]
[null,null,null,null,null,null,null,null,null,""]
[null,null,null,null,null,null,null,null,null,""]
[null,null,null,null,null,null,null,null,null,""]
[null,null,null,null,null,null,null,null,null,""]
[null,null,null,null,null,null,null,null,null,""]
[null,null,null,null,null,null,null,null,null,""]
[null,null,null,null,null,null,null,null,null,""]
[null,null,null,null,null,null,null,null,null,""]
[null,null,null,null,null,null,null,null,null,""]
[null,null,null,null,null,null,null,null,null,""]
[null,null,null,null,null,null,null,null,null,""]
[null,null,null,null,null,null,null,null,null,""]
[null,null,null,null,null,null,null,null,null,""]
[null,null,null,null,null,null,null,null,null,""]
[null,null,null,null,null,null,null,null,null,""]
[null,null,null,null,null,null,null,null,null,""]
[null,null,null,null,null,null,null,null,null,""]
[null,null,null,null,null,null,null,null,null,""]
[null,null,null,null,null,null,null,null,null,""]
[null,null,null,null,null,null,null,null,null,""]
[null,null,null,null,null,null,null,null,null,""]
[null,null,null,null,null,null,null,null,null,""]
[null,null,null,null,null,null,null,null,null,""]
[null,null,null,null,null,null,null,null,null,""]
[null,null,null,null,null,null,null,null,null,""]
[null,null,null,null,null,null,null,null,null,""]
[null,null,null,null,null,null,null,null,null,""]
[null,null,null,null,null,null,null,null,null,""]
[null,null,null,null,null,null,null,null,null,""]
[null,null,null,null,null,null,null,null,null,""]
[null,null,null,null,null,null,null,null,null,""]
[null,null,null,null,null,null,null,null,null,""]
[null,null,null,null,null,null,null,null,null,""]
[null,null,null,null,null,null,null,null,null,""]
[null,null,null,null,null,null,null,null,null,""]
[null,null,null,null,null,null,null,null,null,""]
[null,null,null,null,null,null,null,null,null,""]
[null,null,null,null,null,null,null,null,null,""]
[null,null,null,null,null,null,null,null,null,""]
[null,null,null,null,null,null,null,null,null,""]
[null,null,null,null,null,null,null,null,null,""]
[null,null,null,null,null,null,null,null,null,""]
[null,null,null,null,null,null,null,null,null,""]
[null,null,null,null,null,null,null,null,null,""]
[null,null,null,null,null,null,null,null,null,""]
[null,null,null,null,null,null,null,null,null,""]
[null,null,null,null,null,null,null,null,null,""]
[null,null,null,null,null,null,null,null,null,""]
[null,null,null,null,null,null,null,null,null,""]
[null,null,null,null,null,null,null,null,null,""]
[null,null,null,null,null,null,null,null,null,""]
[null,null,null,null,null,null,null,null,null,""]
[null,null,null,null,null,null,null,null,null,""]
[null,null,null,null,null,null,null,null,null,""]
[null,null,null,null,null,null,null,null,null,""]
[null,null,null,null,null,null,null,null,null,""]
[null,null,null,null,null,null,null,null,null,""]
[null,null,null,null,null,null,null,null,null,""]
[null,null,null,null,null,null,null,null,null,""]
[null,null,null,null,null,null,null,null,null,""]
[null,null,null,null,null,null,null,null,null,""]
[null,null,null,null,null,null,null,null,null,""]
[null,null,null,null,null,null,null,null,null,""]
[null,null,null,null,null,null,null,null,null,""]
[null,null,null,null,null,null,null,null,null,""]
[null,null,null,null,null,null,null,null,null,""]
[null,null,null,null,null,null,null,null,null,""]
[null,null,null,null,null,null,null,null,null,""]
[null,null,null,null,null,null,null,null,null,""]
[null,null,null,null,null,null,null,null,null,""]
[null,null,null,null,null,null,null,null,null,""]
[null,null,null,null,null,null,null,null,null,""]
[null,null,null,null,null,null,null,null,null,""]
[null,null,null,null,null,null,null,null,null,""]
[null,null,null,null,null,null,null,null,null,""]
[null,null,null,null,null,null,null,null,null,""]
[null,null,null,null,null,null,null,null,null,""]
[null,null,null,null,null,null,null,null,null,""]
[null,null,null,null,null,null,null,null,null,""]
[null,null,null,null,null,null,null,null,null,""]
[null,null,null,null,null,null,null,null,null,""]
[null,null,null,null,null,null,null,null,null,""]
[null,null,null,null,null,null,null,null,null,""]
[null,null,null,null,null,null,null,null,null,""]
[null,null,null,null,null,null,null,null,null,""]
[null,null,null,null,null,null,null,null,null,""]
[null,null,null,null,null,null,null,null,null,""]
[null,null,null,null,null,null,null,null,null,""]
[null,null,null,null,null,null,null,null,null,""]
[null,null,null,null,null,null,null,null,null,""]
[null,null,null,null,null,null,null,null,null,""]
[null,null,null,null,null,null,null,null,null,""]
[null,null,null,null,null,null,null,null,null,""]
[null,null,null,null,null,null,null,null,null,""]
[null,null,null,null,null,null,null,null,null,""]
[null,null,null,null,null,null,null,null,null,""]
[null,null,null,null,null,null,null,null,null,""]
[null,null,null,null,null,null,null,null,null,""]
[null,null,null,null,null,null,null,null,null,""]
[null,null,null,null,null,null,null,null,null,""]
[null,null,null,null,null,null,null,null,null,""]
[null,null,null,null,null,null,null,null,null,""]
[null,null,null,null,null,null,null,null,null,""]
[null,null,null,null,null,null,null,null,null,""]
[null,null,null,null,null,null,null,null,null,""]
[null,null,null,null,null,null,null,null,null,""]
[null,null,null,null,null,null,null,null,null,""]
[null,null,null,null,null,null,null,null,null,""]
[null,null,null,null,null,null,null,null,null,""]
[null,null,null,null,null,null,null,null,null,""]
[null,null,null,null,null,null,null,null,null,""]
[null,null,null,null,null,null,null,null,null,""]
[null,null,null,null,null,null,null,null,null,""]
[null,null,null,null,null,null,null,null,null,""]
[null,null,null,null,null,null,null,null,null,""]
[null,null,null,null,null,null,null,null,null,""]
[null,null,null,null,null,null,null,null,null,""]
[null,null,null,null,null,null,null,null,null,""]
[null,null,null,null,null,null,null,null,null,""]
[null,null,null,null,null,null,null,null,null,""]
[null,null,null,null,null,null,null,null,null,""]
[null,null,null,null,null,null,null,null,null,""]
[null,null,null,null,null,null,null,null,null,""]
[null,null,null,null,null,null,null,null,null,""]
[null,null,null,null,null,null,null,null,null,""]
[null,null,null,null,null,null,null,null,null,""]
[null,null,null,null,null,null,null,null,null,""]
[null,null,null,null,null,null,null,null,null,""]
[null,null,null,null,null,null,null,null,null,""]
[null,null,null,null,null,null,null,null,null,""]
[null,null,null,null,null,null,null,null,null,""]
[null,null,null,null,null,null,null,null,null,""]
[null,null,null,null,null,null,null,null,null,""]
[null,null,null,null,null,null,null,null,null,""]
[null,null,null,null,null,null,null,null,null,""]
[null,null,null,null,null,null,null,null,null,""]
[null,null,null,null,null,null,null,null,null,""]
[null,null,null,null,null,null,null,null,null,""]
[null,null,null,null,null,null,null,null,null,""]
[null,null,null,null,null,null,null,null,null,""]
[null,null,null,null,null,null,null,null,null,""]
[null,null,null,null,null,null,null,null,null,""]
[null,null,null,null,null,null,null,null,null,""]
[null,null,null,null,null,null,null,null,null,""]
[null,null,null,null,null,null,null,null,null,""]
[null,null,null,null,null,null,null,null,null,""]
[null,null,null,null,null,null,null,null,null,""]
[null,null,null,null,null,null,null,null,null,""]
[null,null,null,null,null,null,null,null,null,""]
[null,null,null,null,null,null,null,null,null,""]
[null,null,null,null,null,null,null,null,null,""]
[null,null,null,null,null,null,null,null,null,""]
[null,null,null,null,null,null,null,null,null,""]
[null,null,null,null,null,null,null,null,null,""]
[null,null,null,null,null,null,null,null,null,""]
[null,null,null,null,null,null,null,null,null,""]
[null,null,null,null,null,null,null,null,null,""]
[null,null,null,null,null,null,null,null,null,""]
[null,null,null,null,null,null,null,null,null,""]
[null,null,null,null,null,null,null,null,null,""]
[null,null,null,null,null,null,null,null,null,""]
[null,null,null,null,null,null,null,null,null,""]
[null,null,null,null,null,null,null,null,null,""]
[null,null,null,null,null,null,null,null,null,""]
[null,null,null,null,null,null,null,null,null,""]
[null,null,null,null,null,null,null,null,null,""]
[null,null,null,null,null,null,null,null,null,""]
[null,null,null,null,null,null,null,null,null,""]
[null,null,null,null,null,null,null,null,null,""]
[null,null,null,null,null,null,null,null,null,""]
[null,null,null,null,null,null,null,null,null,""]
[null,null,null,null,null,null,null,null,null,""]
[null,null,null,null,null,null,null,null,null,""]
[null,null,null,null,null,null,null,null,null,""]
[null,null,null,null,null,null,null,null,null,""]
[null,null,null,null,null,null,null,null,null,""]
[null,null,null,null,null,null,null,null,null,""]
[null,null,null,null,null,null,null,null,null,""]
[null,null,null,null,null,null,null,null,null,""]
[null,null,null,null,null,null,null,null,null,""]
[null,null,null,null,null,null,null,null,null,""]
[null,null,null,null,null,null,null,null,null,""]
[null,null,null,null,null,null,null,null,null,""]
[null,null,null,null,null,null,null,null,null,""]
[null,null,null,null,null,null,null,null,null,""]
[null,null,null,null,null,null,null,null,null,""]
[null,null,null,null,null,null,null,null,null,""]
[null,null,null,null,null,null,null,null,null,""]
[null,null,null,null,null,null,null,null,null,""]
[null,null,null,null,null,null,null,null,null,""]
[null,null,null,null,null,null,null,null,null,""]
[null,null,null,null,null,null,null,null,null,""]
[null,null,null,null,null,null,null,null,null,""]
[null,null,null,null,null,null,null,null,null,""]
[null,null,null,null,null,null,null,null,null,""]
[null,null,null,null,null,null,null,null,null,""]
[null,null,null,null,null,null,null,null,null,""]
[null,null,null,null,null,null,null,null,null,""]
[null,null,null,null,null,null,null,null,null,""]
[null,null,null,null,null,null,null,null,null,""]
[null,null,null,null,null,null,null,null,null,""]
[null,null,null,null,null,null,null,null,null,""]
[null,null,null,null,null,null,null,null,null,""]
[null,null,null,null,null,null,null,null,null,""]
[null,null,null,null,null,null,null,null,null,""]
[null,null,null,null,null,null,null,null,null,""]
[null,null,null,null,null,null,null,null,null,""]
[null,null,null,null,null,null,null,null,null,""]
[null,null,null,null,null,null,null,null,null,""]
[null,null,null,null,null,null,null,null,null,""]
[null,null,null,null,null,null,null,null,null,""]
[null,null,null,null,null,null,null,null,null,""]
[null,null,null,null,null,null,null,null,null,""]
[null,null,null,null,null,null,null,null,null,""]
[null,null,null,null,null,null,null,null,null,""]
[null,null,null,null,null,null,null,null,null,""]
[null,null,null,null,null,null,null,null,null,""]
[null,null,null,null,null,null,null,null,null,""]
[null,null,null,null,null,null,null,null,null,""]
[null,null,null,null,null,null,null,null,null,""]
[null,null,null,null,null,null,null,null,null,""]
[null,null,null,null,null,null,null,null,null,""]
[null,null,null,null,null,null,null,null,null,""]
[null,null,null,null,null,null,null,null,null,""]
[null,null,null,null,null,null,null,null,null,""]
[null,null,null,null,null,null,null,null,null,""]
[null,null,null,null,null,null,null,null,null,""]
[null,null,null,null,null,null,null,null,null,""]
[null,null,null,null,null,null,null,null,null,""]
[null,null,null,null,null,null,null,null,null,""]
[null,null,null,null,null,null,null,null,null,""]
[null,null,null,null,null,null,null,null,null,""]
[null,null,null,null,null,null,null,null,null,""]
[null,null,null,null,null,null,null,null,null,""]
[null,null,null,null,null,null,null,null,null,""]
[null,null,null,null,null,null,null,null,null,""]
[null,null,null,null,null,null,null,null,null,""]
[null,null,null,null,null,null,null,null,null,""]
[null,null,null,null,null,null,null,null,null,""]
[null,null,null,null,null,null,null,null,null,""]
[null,null,null,null,null,null,null,null,null,""]
[null,null,null,null,null,null,null,null,null,""]
[null,null,null,null,null,null,null,null,null,""]
[null,null,null,null,null,null,null,null,null,""]
[null,null,null,null,null,null,null,null,null,""]
[null,null,null,null,null,null,null,null,null,""]
[null,null,null,null,null,null,null,null,null,""]
[null,null,null,null,null,null,null,null,null,""]
[null,null,null,null,null,null,null,null,null,""]
[null,null,null,null,null,null,null,null,null,""]
[null,null,null,null,null,null,null,null,null,""]
[null,null,null,null,null,null,null,null,null,""]
[null,null,null,null,null,null,null,null,null,""]
[null,null,null,null,null,null,null,null,null,""]
[null,null,null,null,null,null,null,null,null,""]
[null,null,null,null,null,null,null,null,null,""]
[null,null,null,null,null,null,null,null,null,""]
[null,null,null,null,null,null,null,null,null,""]
[null,null,null,null,null,null,null,null,null,""]
[null,null,null,null,null,null,null,null,null,""]
[null,null,null,null,null,null,null,null,null,""]
[null,null,null,null,null,null,null,null,null,""]
[null,null,null,null,null,null,null,null,null,""]
[null,null,null,null,null,null,null,null,null,""]
[null,null,null,null,null,null,null,null,null,""]
[null,null,null,null,null,null,null,null,null,""]
[null,null,null,null,null,null,null,null,null,""]
[null,null,null,null,null,null,null,null,null,""]
[null,null,null,null,null,null,null,null,null,""]
[null,null,null,null,null,null,null,null,null,""]
[null,null,null,null,null,null,null,null,null,""]
[null,null,null,null,null,null,null,null,null,""]
[null,null,null,null,null,null,null,null,null,""]
[null,null,null,null,null,null,null,null,null,""]
[null,null,null,null,null,null,null,null,null,""]
[null,null,null,null,null,null,null,null,null,""]
[null,null,null,null,null,null,null,null,null,""]
[null,null,null,null,null,null,null,null,null,""]
[null,null,null,null,null,null,null,null,null,""]
[null,null,null,null,null,null,null,null,null,""]
[null,null,null,null,null,null,null,null,null,""]
[null,null,null,null,null,null,null,null,null,""]
[null,null,null,null,null,null,null,null,null,""]
[null,null,null,null,null,null,null,null,null,""]
[null,null,null,null,null,null,null,null,null,""]
[null,null,null,null,null,null,null,null,null,""]
[null,null,null,null,null,null,null,null,null,""]
[null,null,null,null,null,null,null,null,null,""]
[null,null,null,null,null,null,null,null,null,""]
[null,null,null,null,null,null,null,null,null,""]
[null,null,null,null,null,null,null,null,null,""]
[null,null,null,null,null,null,null,null,null,""]
[null,null,null,null,null,null,null,null,null,""]
[null,null,null,null,null,null,null,null,null,""]
[null,null,null,null,null,null,null,null,null,""]
[null,null,null,null,null,null,null,null,null,""]
[null,null,null,null,null,null,null,null,null,""]
[null,null,null,null,null,null,null,null,null,""]
[null,null,null,null,null,null,null,null,null,""]
[null,null,null,null,null,null,null,null,null,""]
[null,null,null,null,null,null,null,null,null,""]
[null,null,null,null,null,null,null,null,null,""]
[null,null,null,null,null,null,null,null,null,""]
[null,null,null,null,null,null,null,null,null,""]
[null,null,null,null,null,null,null,null,null,""]
[null,null,null,null,null,null,null,null,null,""]
[null,null,null,null,null,null,null,null,null,""]
[null,null,null,null,null,null,null,null,null,""]
[null,null,null,null,null,null,null,null,null,""]
[null,null,null,null,null,null,null,null,null,""]
[null,null,null,null,null,null,null,null,null,""]
[null,null,null,null,null,null,null,null,null,""]
[null,null,null,null,null,null,null,null,null,""]
[null,null,null,null,null,null,null,null,null,""]
[null,null,null,null,null,null,null,null,null,""]
[null,null,null,null,null,null,null,null,null,""]
[null,null,null,null,null,null,null,null,null,""]
[null,null,null,null,null,null,null,null,null,""]
[null,null,null,null,null,null,null,null,null,""]
[null,null,null,null,null,null,null,null,null,""]
[null,null,null,null,null,null,null,null,null,""]
[null,null,null,null,null,null,null,null,null,""]
[null,null,null,null,null,null,null,null,null,""]
[null,null,null,null,null,null,null,null,null,""]
[null,null,null,null,null,null,null,null,null,""]
[null,null,null,null,null,null,null,null,null,""]
[null,null,null,null,null,null,null,null,null,""]
[null,null,null,null,null,null,null,null,null,""]
[null,null,null,null,null,null,null,null,null,""]
[null,null,null,null,null,null,null,null,null,""]
[null,null,null,null,null,null,null,null,null,""]
[null,null,null,null,null,null,null,null,null,""]
[null,null,null,null,null,null,null,null,null,""]
[null,null,null,null,null,null,null,null,null,""]
[null,null,null,null,null,null,null,null,null,""]
[null,null,null,null,null,null,null,null,null,""]
[null,null,null,null,null,null,null,null,null,""]
[null,null,null,null,null,null,null,null,null,""]
[null,null,null,null,null,null,null,null,null,""]
[null,null,null,null,null,null,null,null,null,""]
[null,null,null,null,null,null,null,null,null,""]
[null,null,null,null,null,null,null,null,null,""]
[null,null,null,null,null,null,null,null,null,""]
[null,null,null,null,null,null,null,null,null,""]
[null,null,null,null,null,null,null,null,null,""]
[null,null,null,null,null,null,null,null,null,""]
[null,null,null,null,null,null,null,null,null,""]
[null,null,null,null,null,null,null,null,null,""]
[null,null,null,null,null,null,null,null,null,""]
[null,null,null,null,null,null,null,null,null,""]
[null,null,null,null,null,null,null,null,null,""]
[null,null,null,null,null,null,null,null,null,""]
[null,null,null,null,null,null,null,null,null,""]
[null,null,null,null,null,null,null,null,null,""]
[null,null,null,null,null,null,null,null,null,""]
[null,null,null,null,null,null,null,null,null,""]
[null,null,null,null,null,null,null,null,null,""]
[null,null,null,null,null,null,null,null,null,""]
[null,null,null,null,null,null,null,null,null,""]
[null,null,null,null,null,null,null,null,null,""]
[null,null,null,null,null,null,null,null,null,""]
[null,null,null,null,null,null,null,null,null,""]
[null,null,null,null,null,null,null,null,null,""]
[null,null,null,null,null,null,null,null,null,""]
[null,null,null,null,null,null,null,null,null,""]
[null,null,null,null,null,null,null,null,null,""]
[null,null,null,null,null,null,null,null,null,""]
[null,null,null,null,null,null,null,null,null,""]
[null,null,null,null,null,null,null,null,null,""]
[null,null,null,null,null,null,null,null,null,""]
[null,null,null,null,null,null,null,null,null,""]
[null,null,null,null,null,null,null,null,null,""]
[null,null,null,null,null,null,null,null,null,""]
[null,null,null,null,null,null,null,null,null,""]
[null,null,null,null,null,null,null,null,null,""]
[null,null,null,null,null,null,null,null,null,""]
[null,null,null,null,null,null,null,null,null,""]
[null,null,null,null,null,null,null,null,null,""]
[null,null,null,null,null,null,null,null,null,""]
[null,null,null,null,null,null,null,null,null,""]
[null,null,null,null,null,null,null,null,null,""]
[null,null,null,null,null,null,null,null,null,""]
[null,null,null,null,null,null,null,null,null,""]
[null,null,null,null,null,null,null,null,null,""]
[null,null,null,null,null,null,null,null,null,""]
[null,null,null,null,null,null,null,null,null,""]
[null,null,null,null,null,null,null,null,null,""]
[null,null,null,null,null,null,null,null,null,""]
[null,null,null,null,null,null,null,null,null,""]
[null,null,null,null,null,null,null,null,null,""]
[null,null,null,null,null,null,null,null,null,""]
[null,null,null,null,null,null,null,null,null,""]
[null,null,null,null,null,null,null,null,null,""]
[null,null,null,null,null,null,null,null,null,""]
[null,null,null,null,null,null,null,null,null,""]
[null,null,null,null,null,null,null,null,null,""]
[null,null,null,null,null,null,null,null,null,""]
[null,null,null,null,null,null,null,null,null,""]
[null,null,null,null,null,null,null,null,null,""]
[null,null,null,null,null,null,null,null,null,""]
[null,null,null,null,null,null,null,null,null,""]
[null,null,null,null,null,null,null,null,null,""]
[null,null,null,null,null,null,null,null,null,""]
[null,null,null,null,null,null,null,null,null,""]
[null,null,null,null,null,null,null,null,null,""]
[null,null,null,null,null,null,null,null,null,""]
[null,null,null,null,null,null,null,null,null,""]
[null,null,null,null,null,null,null,null,null,""]
[null,null,null,null,null,null,null,null,null,""]
[null,null,null,null,null,null,null,null,null,""]
[null,null,null,null,null,null,null,null,null,""]
[null,null,null,null,null,null,null,null,null,""]
[null,null,null,null,null,null,null,null,null,""]
[null,null,null,null,null,null,null,null,null,""]
[null,null,null,null,null,null,null,null,null,""]
[null,null,null,null,null,null,null,null,null,""]
[null,null,null,null,null,null,null,null,null,""]
[null,null,null,null,null,null,null,null,null,""]
[null,null,null,null,null,null,null,null,null,""]
[null,null,null,null,null,null,null,null,null,""]
[null,null,null,null,null,null,null,null,null,""]
[null,null,null,null,null,null,null,null,null,""]
[null,null,null,null,null,null,null,null,null,""]
[null,null,null,null,null,null,null,null,null,""]
[null,null,null,null,null,null,null,null,null,""]
[null,null,null,null,null,null,null,null,null,""]
[null,null,null,null,null,null,null,null,null,""]
[null,null,null,null,null,null,null,null,null,""]
[null,null,null,null,null,null,null,null,null,""]
[null,null,null,null,null,null,null,null,null,""]
[null,null,null,null,null,null,null,null,null,""]
[null,null,null,null,null,null,null,null,null,""]
[null,null,null,null,null,null,null,null,null,""]
[null,null,null,null,null,null,null,null,null,""]
[null,null,null,null,null,null,null,null,null,""]
[null,null,null,null,null,null,null,null,null,""]
[null,null,null,null,null,null,null,null,null,""]
[null,null,null,null,null,null,null,null,null,""]
[null,null,null,null,null,null,null,null,null,""]
[null,null,null,null,null,null,null,null,null,""]
[null,null,null,null,null,null,null,null,null,""]
[null,null,null,null,null,null,null,null,null,""]
[null,null,null,null,null,null,null,null,null,""]
[null,null,null,null,null,null,null,null,null,""]
[null,null,null,null,null,null,null,null,null,""]
[null,null,null,null,null,null,null,null,null,""]
[null,null,null,null,null,null,null,null,null,""]
[null,null,null,null,null,null,null,null,null,""]
[null,null,null,null,null,null,null,null,null,""]
[null,null,null,null,null,null,null,null,null,""]
[null,null,null,null,null,null,null,null,null,""]
[null,null,null,null,null,null,null,null,null,""]
[null,null,null,null,null,null,null,null,null,""]
[null,null,null,null,null,null,null,null,null,""]
[null,null,null,null,null,null,null,null,null,""]
[null,null,null,null,null,null,null,null,null,""]
[null,null,null,null,null,null,null,null,null,""]
[null,null,null,null,null,null,null,null,null,""]
[null,null,null,null,null,null,null,null,null,""]
[null,null,null,null,null,null,null,null,null,""]
[null,null,null,null,null,null,null,null,null,""]
[null,null,null,null,null,null,null,null,null,""]
[null,null,null,null,null,null,null,null,null,""]
[null,null,null,null,null,null,null,null,null,""]
[null,null,null,null,null,null,null,null,null,""]
[null,null,null,null,null,null,null,null,null,""]
[null,null,null,null,null,null,null,null,null,""]
[null,null,null,null,null,null,null,null,null,""]
[null,null,null,null,null,null,null,null,null,""]
[null,null,null,null,null,null,null,null,null,""]
[null,null,null,null,null,null,null,null,null,""]
[null,null,null,null,null,null,null,null,null,""]
[null,null,null,null,null,null,null,null,null,""]
[null,null,null,null,null,null,null,null,null,""]
[null,null,null,null,null,null,null,null,null,""]
[null,null,null,null,null,null,null,null,null,""]
[null,null,null,null,null,null,null,null,null,""]
[null,null,null,null,null,null,null,null,null,""]
[null,null,null,null,null,null,null,null,null,""]
[null,null,null,null,null,null,null,null,null,""]
[null,null,null,null,null,null,null,null,null,""]
[null,null,null,null,null,null,null,null,null,""]
[null,null,null,null,null,null,null,null,null,""]
[null,null,null,null,null,null,null,null,null,""]
[null,null,null,null,null,null,null,null,null,""]
[null,null,null,null,null,null,null,null,null,""]
[null,null,null,null,null,null,null,null,null,""]
[null,null,null,null,null,null,null,null,null,""]
[null,null,null,null,null,null,null,null,null,""]
[null,null,null,null,null,null,null,null,null,""]
[null,null,null,null,null,null,null,null,null,""]
[null,null,null,null,null,null,null,null,null,""]
[null,null,null,null,null,null,null,null,null,""]
[null,null,null,null,null,null,null,null,null,""]
[null,null,null,null,null,null,null,null,null,""]
[null,null,null,null,null,null,null,null,null,""]
[null,null,null,null,null,null,null,null,null,""]
[null,null,null,null,null,null,null,null,null,""]
[null,null,null,null,null,null,null,null,null,""]
[null,null,null,null,null,null,null,null,null,""]
[null,null,null,null,null,null,null,null,null,""]
[null,null,null,null,null,null,null,null,null,""]
[null,null,null,null,null,null,null,null,null,""]
[null,null,null,null,null,null,null,null,null,""]
[null,null,null,null,null,null,null,null,null,""]
[null,null,null,null,null,null,null,null,null,""]
[null,null,null,null,null,null,null,null,null,""]
[null,null,null,null,null,null,null,null,null,""]
[null,null,null,null,null,null,null,null,null,""]
[null,null,null,null,null,null,null,null,null,""]
[null,null,null,null,null,null,null,null,null,""]
[null,null,null,null,null,null,null,null,null,""]
[null,null,null,null,null,null,null,null,null,""]
[null,null,null,null,null,null,null,null,null,""]
[null,null,null,null,null,null,null,null,null,""]
[null,null,null,null,null,null,null,null,null,""]
[null,null,null,null,null,null,null,null,null,""]
[null,null,null,null,null,null,null,null,null,""]
[null,null,null,null,null,null,null,null,null,""]
[null,null,null,null,null,null,null,null,null,""]
[null,null,null,null,null,null,null,null,null,""]
[null,null,null,null,null,null,null,null,null,""]
[null,null,null,null,null,null,null,null,null,""]
[null,null,null,null,null,null,null,null,null,""]
[null,null,null,null,null,null,null,null,null,""]
[null,null,null,null,null,null,null,null,null,""]
[null,null,null,null,null,null,null,null,null,""]
[null,null,null,null,null,null,null,null,null,""]
[null,null,null,null,null,null,null,null,null,""]
[null,null,null,null,null,null,null,null,null,""]
[null,null,null,null,null,null,null,null,null,""]
[null,null,null,null,null,null,null,null,null,""]
[null,null,null,null,null,null,null,null,null,""]
[null,null,null,null,null,null,null,null,null,""]
[null,null,null,null,null,null,null,null,null,""]
[null,null,null,null,null,null,null,null,null,""]
[null,null,null,null,null,null,null,null,null,""]
[null,null,null,null,null,null,null,null,null,""]
[null,null,null,null,null,null,null,null,null,""]
[null,null,null,null,null,null,null,null,null,""]
[null,null,null,null,null,null,null,null,null,""]
[null,null,null,null,null,null,null,null,null,""]
[null,null,null,null,null,null,null,null,null,""]
[null,null,null,null,null,null,null,null,null,""]
[null,null,null,null,null,null,null,null,null,""]
[null,null,null,null,null,null,null,null,null,""]
[null,null,null,null,null,null,null,null,null,""]
[null,null,null,null,null,null,null,null,null,""]
[null,null,null,null,null,null,null,null,null,""]
[null,null,null,null,null,null,null,null,null,""]
[null,null,null,null,null,null,null,null,null,""]
[null,null,null,null,null,null,null,null,null,""]
[null,null,null,null,null,null,null,null,null,""]
[null,null,null,null,null,null,null,null,null,""]
[null,null,null,null,null,null,null,null,null,""]
[null,null,null,null,null,null,null,null,null,""]
[null,null,null,null,null,null,null,null,null,""]
[null,null,null,null,null,null,null,null,null,""]
[null,null,null,null,null,null,null,null,null,""]
[null,null,null,null,null,null,null,null,null,""]
[null,null,null,null,null,null,null,null,null,""]
[null,null,null,null,null,null,null,null,null,""]
[null,null,null,null,null,null,null,null,null,""]
[null,null,null,null,null,null,null,null,null,""]
[null,null,null,null,null,null,null,null,null,""]
[null,null,null,null,null,null,null,null,null,""]
[null,null,null,null,null,null,null,null,null,""]
[null,null,null,null,null,null,null,null,null,""]
[null,null,null,null,null,null,null,null,null,""]
[null,null,null,null,null,null,null,null,null,""]
[null,null,null,null,null,null,null,null,null,""]
[null,null,null,null,null,null,null,null,null,""]
[null,null,null,null,null,null,null,null,null,""]
[null,null,null,null,null,null,null,null,null,""]
[null,null,null,null,null,null,null,null,null,""]
[null,null,null,null,null,null,null,null,null,""]
[null,null,null,null,null,null,null,null,null,""]
[null,null,null,null,null,null,null,null,null,""]
[null,null,null,null,null,null,null,null,null,""]
[null,null,null,null,null,null,null,null,null,""]
[null,null,null,null,null,null,null,null,null,""]
[null,null,null,null,null,null,null,null,null,""]
[null,null,null,null,null,null,null,null,null,""]
[null,null,null,null,null,null,null,null,null,""]
[null,null,null,null,null,null,null,null,null,""]
[null,null,null,null,null,null,null,null,null,""]
[null,null,null,null,null,null,null,null,null,""]
[null,null,null,null,null,null,null,null,null,""]
[null,null,null,null,null,null,null,null,null,""]
[null,null,null,null,null,null,null,null,null,""]
[null,null,null,null,null,null,null,null,null,""]
[null,null,null,null,null,null,null,null,null,""]
[null,null,null,null,null,null,null,null,null,""]
[null,null,null,null,null,null,null,null,null,""]
[null,null,null,null,null,null,null,null,null,""]
[null,null,null,null,null,null,null,null,null,""]
[null,null,null,null,null,null,null,null,null,""]
[null,null,null,null,null,null,null,null,null,""]
[null,null,null,null,null,null,null,null,null,""]
[null,null,null,null,null,null,null,null,null,""]
[null,null,null,null,null,null,null,null,null,""]
[null,null,null,null,null,null,null,null,null,""]
[null,null,null,null,null,null,null,null,null,""]
[null,null,null,null,null,null,null,null,null,""]
[null,null,null,null,null,null,null,null,null,""]
[null,null,null,null,null,null,null,null,null,""]
[null,null,null,null,null,null,null,null,null,""]
[null,null,null,null,null,null,null,null,null,""]
[null,null,null,null,null,null,null,null,null,""]
[null,null,null,null,null,null,null,null,null,""]
[null,null,null,null,null,null,null,null,null,""]
[null,null,null,null,null,null,null,null,null,""]
[null,null,null,null,null,null,null,null,null,""]
[null,null,null,null,null,null,null,null,null,""]
[null,null,null,null,null,null,null,null,null,""]
[null,null,null,null,null,null,null,null,null,""]
[null,null,null,null,null,null,null,null,null,""]
[null,null,null,null,null,null,null,null,null,""]
[null,null,null,null,null,null,null,null,null,""]
[null,null,null,null,null,null,null,null,null,""]
[null,null,null,null,null,null,null,null,null,""]
[null,null,null,null,null,null,null,null,null,""]
[null,null,null,null,null,null,null,null,null,""]
[null,null,null,null,null,null,null,null,null,""]
[null,null,null,null,null,null,null,null,null,""]
[null,null,null,null,null,null,null,null,null,""]
[null,null,null,null,null,null,null,null,null,""]
[null,null,null,null,null,null,null,null,null,""]
[null,null,null,null,null,null,null,null,null,""]
[null,null,null,null,null,null,null,null,null,""]
[null,null,null,null,null,null,null,null,null,""]
[null,null,null,null,null,null,null,null,null,""]
[null,null,null,null,null,null,null,null,null,""]
[null,null,null,null,null,null,null,null,null,""]
[null,null,null,null,null,null,null,null,null,""]
[null,null,null,null,null,null,null,null,null,""]
[null,null,null,null,null,null,null,null,null,""]
[null,null,null,null,null,null,null,null,null,""]
[null,null,null,null,null,null,null,null,null,""]
[null,null,null,null,null,null,null,null,null,""]
[null,null,null,null,null,null,null,null,null,""]
[null,null,null,null,null,null,null,null,null,""]
[null,null,null,null,null,null,null,null,null,""]
[null,null,null,null,null,null,null,null,null,""]
[null,null,null,null,null,null,null,null,null,""]
[null,null,null,null,null,null,null,null,null,""]
[null,null,null,null,null,null,null,null,null,""]
[null,null,null,null,null,null,null,null,null,""]
[null,null,null,null,null,null,null,null,null,""]
[null,null,null,null,null,null,null,null,null,""]
[null,null,null,null,null,null,null,null,null,""]
[null,null,null,null,null,null,null,null,null,""]
[null,null,null,null,null,null,null,null,null,""]
[null,null,null,null,null,null,null,null,null,""]
[null,null,null,null,null,null,null,null,null,""]
[null,null,null,null,null,null,null,null,null,""]
[null,null,null,null,null,null,null,null,null,""]
[null,null,null,null,null,null,null,null,null,""]
[null,null,null,null,null,null,null,null,null,""]
[null,null,null,null,null,null,null,null,null,""]
[null,null,null,null,null,null,null,null,null,""]
[null,null,null,null,null,null,null,null,null,""]
[null,null,null,null,null,null,null,null,null,""]
[null,null,null,null,null,null,null,null,null,""]
[null,null,null,null,null,null,null,null,null,""]
[null,null,null,null,null,null,null,null,null,""]
[null,null,null,null,null,null,null,null,null,""]
[null,null,null,null,null,null,null,null,null,""]
[null,null,null,null,null,null,null,null,null,""]
[null,null,null,null,null,null,null,null,null,""]
[null,null,null,null,null,null,null,null,null,""]
[null,null,null,null,null,null,null,null,null,""]
[null,null,null,null,null,null,null,null,null,""]
[null,null,null,null,null,null,null,null,null,""]
[null,null,null,null,null,null,null,null,null,""]
[null,null,null,null,null,null,null,null,null,""]
[null,null,null,null,null,null,null,null,null,""]
[null,null,null,null,null,null,null,null,null,""]
[null,null,null,null,null,null,null,null,null,""]
[null,null,null,null,null,null,null,null,null,""]
[null,null,null,null,null,null,null,null,null,""]
[null,null,null,null,null,null,null,null,null,""]
[null,null,null,null,null,null,null,null,null,""]
[null,null,null,null,null,null,null,null,null,""]
[null,null,null,null,null,null,null,null,null,""]
[null,null,null,null,null,null,null,null,null,""]
[null,null,null,null,null,null,null,null,null,""]
[null,null,null,null,null,null,null,null,null,""]
[null,null,null,null,null,null,null,null,null,""]
[null,null,null,null,null,null,null,null,null,""]
[null,null,null,null,null,null,null,null,null,""]
[null,null,null,null,null,null,null,null,null,""]
[null,null,null,null,null,null,null,null,null,""]
[null,null,null,null,null,null,null,null,null,""]
[null,null,null,null,null,null,null,null,null,""]
[null,null,null,null,null,null,null,null,null,""]
[null,null,null,null,null,null,null,null,null,""]
[null,null,null,null,null,null,null,null,null,""]
[null,null,null,null,null,null,null,null,null,""]
[null,null,null,null,null,null,null,null,null,""]
[null,null,null,null,null,null,null,null,null,""]
[null,null,null,null,null,null,null,null,null,""]
[null,null,null,null,null,null,null,null,null,""]
[null,null,null,null,null,null,null,null,null,""]
[null,null,null,null,null,null,null,null,null,""]
[null,null,null,null,null,null,null,null,null,""]
[null,null,null,null,null,null,null,null,null,""]
[null,null,null,null,null,null,null,null,null,""]
[null,null,null,null,null,null,null,null,null,""]
[null,null,null,null,null,null,null,null,null,""]
[null,null,null,null,null,null,null,null,null,""]
[null,null,null,null,null,null,null,null,null,""]
[null,null,null,null,null,null,null,null,null,""]
[null,null,null,null,null,null,null,null,null,""]
[null,null,null,null,null,null,null,null,null,""]
[null,null,null,null,null,null,null,null,null,""]
[null,null,null,null,null,null,null,null,null,""]
[null,null,null,null,null,null,null,null,null,""]
[null,null,null,null,null,null,null,null,null,""]
[null,null,null,null,null,null,null,null,null,""]
[null,null,null,null,null,null,null,null,null,""]
[null,null,null,null,null,null,null,null,null,""]
[null,null,null,null,null,null,null,null,null,""]
[null,null,null,null,null,null,null,null,null,""]
[null,null,null,null,null,null,null,null,null,""]
[null,null,null,null,null,null,null,null,null,""]
[null,null,null,null,null,null,null,null,null,""]
[null,null,null,null,null,null,null,null,null,""]
[null,null,null,null,null,null,null,null,null,""]
[null,null,null,null,null,null,null,null,null,""]
[null,null,null,null,null,null,null,null,null,""]
[null,null,null,null,null,null,null,null,null,""]
[null,null,null,null,null,null,null,null,null,""]
[null,null,null,null,null,null,null,null,null,""]
[null,null,null,null,null,null,null,null,null,""]
[null,null,null,null,null,null,null,null,null,""]
[null,null,null,null,null,null,null,null,null,""]
[null,null,null,null,null,null,null,null,null,""]
[null,null,null,null,null,null,null,null,null,""]
[null,null,null,null,null,null,null,null,null,""]
[null,null,null,null,null,null,null,null,null,""]
[null,null,null,null,null,null,null,null,null,""]
[null,null,null,null,null,null,null,null,null,""]
[null,null,null,null,null,null,null,null,null,""]
[null,null,null,null,null,null,null,null,null,""]
[null,null,null,null,null,null,null,null,null,""]
[null,null,null,null,null,null,null,null,null,""]
[null,null,null,null,null,null,null,null,null,""]
[null,null,null,null,null,null,null,null,null,""]
[null,null,null,null,null,null,null,null,null,""]
[null,null,null,null,null,null,null,null,null,""]
[null,null,null,null,null,null,null,null,null,""]
[null,null,null,null,null,null,null,null,null,""]
[null,null,null,null,null,null,null,null,null,""]
[null,null,null,null,null,null,null,null,null,""]
[null,null,null,null,null,null,null,null,null,""]
[null,null,null,null,null,null,null,null,null,""]
[null,null,null,null,null,null,null,null,null,""]
[null,null,null,null,null,null,null,null,null,""]
[null,null,null,null,null,null,null,null,null,""]
[null,null,null,null,null,null,null,null,null,""]
[null,null,null,null,null,null,null,null,null,""]
[null,null,null,null,null,null,null,null,null,""]
[null,null,null,null,null,null,null,null,null,""]
[null,null,null,null,null,null,null,null,null,""]
[null,null,null,null,null,null,null,null,null,""]
[null,null,null,null,null,null,null,null,null,""]
[null,null,null,null,null,null,null,null,null,""]
[null,null,null,null,null,null,null,null,null,""]
[null,null,null,null,null,null,null,null,null,""]
[null,null,null,null,null,null,null,null,null,""]
[null,null,null,null,null,null,null,null,null,""]
[null,null,null,null,null,null,null,null,null,""]
[null,null,null,null,null,null,null,null,null,""]
[null,null,null,null,null,null,null,null,null,""]
[null,null,null,null,null,null,null,null,null,""]
[null,null,null,null,null,null,null,null,null,""]
[null,null,null,null,null,null,null,null,null,""]
[null,null,null,null,null,null,null,null,null,""]
[null,null,null,null,null,null,null,null,null,""]
[null,null,null,null,null,null,null,null,null,""]
[null,null,null,null,null,null,null,null,null,""]
[null,null,null,null,null,null,null,null,null,""]
[null,null,null,null,null,null,null,null,null,""]
[null,null,null,null,null,null,null,null,null,""]
[null,null,null,null,null,null,null,null,null,""]
[null,null,null,null,null,null,null,null,null,""]
[null,null,null,null,null,null,null,null,null,""]
[null,null,null,null,null,null,null,null,null,""]
[null,null,null,null,null,null,null,null,null,""]
[null,null,null,null,null,null,null,null,null,""]
[null,null,null,null,null,null,null,null,null,""]
[null,null,null,null,null,null,null,null,null,""]
[null,null,null,null,null,null,null,null,null,""]
[null,null,null,null,null,null,null,null,null,""]
[null,null,null,null,null,null,null,null,null,""]
[null,null,null,null,null,null,null,null,null,""]
[null,null,null,null,null,null,null,null,null,""]
[null,null,null,null,null,null,null,null,null,""]
[null,null,null,null,null,null,null,null,null,""]
[null,null,null,null,null,null,null,null,null,""]
[null,null,null,null,null,null,null,null,null,""]
[null,null,null,null,null,null,null,null,null,""]
[null,null,null,null,null,null,null,null,null,""]
[null,null,null,null,null,null,null,null,null,""]
[null,null,null,null,null,null,null,null,null,""]
[null,null,null,null,null,null,null,null,null,""]
[null,null,null,null,null,null,null,null,null,""]
[null,null,null,null,null,null,null,null,null,""]
[null,null,null,null,null,null,null,null,null,""]
[null,null,null,null,null,null,null,null,null,""]
[null,null,null,null,null,null,null,null,null,""]
[null,null,null,null,null,null,null,null,null,""]
[null,null,null,null,null,null,null,null,null,""]
[null,null,null,null,null,null,null,null,null,""]
[null,null,null,null,null,null,null,null,null,""]
[null,null,null,null,null,null,null,null,null,""]
[null,null,null,null,null,null,null,null,null,""]
[null,null,null,null,null,null,null,null,null,""]
[null,null,null,null,null,null,null,null,null,""]
[null,null,null,null,null,null,null,null,null,""]
[null,null,null,null,null,null,null,null,null,""]
[null,null,null,null,null,null,null,null,null,""]
[null,null,null,null,null,null,null,null,null,""]
[null,null,null,null,null,null,null,null,null,""]
[null,null,null,null,null,null,null,null,null,""]
[null,null,null,null,null,null,null,null,null,""]
[null,null,null,null,null,null,null,null,null,""]
[null,null,null,null,null,null,null,null,null,""]
[null,null,null,null,null,null,null,null,null,""]
[null,null,null,null,null,null,null,null,null,""]
[null,null,null,null,null,null,null,null,null,""]
[null,null,null,null,null,null,null,null,null,""]
[null,null,null,null,null,null,null,null,null,""]
[null,null,null,null,null,null,null,null,null,""]
[null,null,null,null,null,null,null,null,null,""]
[null,null,null,null,null,null,null,null,null,""]
[null,null,null,null,null,null,null,null,null,""]
[null,null,null,null,null,null,null,null,null,""]
[null,null,null,null,null,null,null,null,null,""]
[null,null,null,null,null,null,null,null,null,""]
[null,null,null,null,null,null,null,null,null,""]
[null,null,null,null,null,null,null,null,null,""]
[null,null,null,null,null,null,null,null,null,""]
[null,null,null,null,null,null,null,null,null,""]
[null,null,null,null,null,null,null,null,null,""]
[null,null,null,null,null,null,null,null,null,""]
[null,null,null,null,null,null,null,null,null,""]
[null,null,null,null,null,null,null,null,null,""]
[null,null,null,null,null,null,null,null,null,""]
[null,null,null,null,null,null,null,null,null,""]
[null,null,null,null,null,null,null,null,null,""]
[null,null,null,null,null,null,null,null,null,""]
[null,null,null,null,null,null,null,null,null,""]
[null,null,null,null,null,null,null,null,null,""]
[null,null,null,null,null,null,null,null,null,""]
[null,null,null,null,null,null,null,null,null,""]
[null,null,null,null,null,null,null,null,null,""]
[null,null,null,null,null,null,null,null,null,""]
[null,null,null,null,null,null,null,null,null,""]
[null,null,null,null,null,null,null,null,null,""]
[null,null,null,null,null,null,null,null,null,""]
[null,null,null,null,null,null,null,null,null,""]
[null,null,null,null,null,null,null,null,null,""]
[null,null,null,null,null,null,null,null,null,""]
[null,null,null,null,null,null,null,null,null,""]
[null,null,null,null,null,null,null,null,null,""]
[null,null,null,null,null,null,null,null,null,""]
[null,null,null,null,null,null,null,null,null,""]
[null,null,null,null,null,null,null,null,null,""]
[null,null,null,null,null,null,null,null,null,""]
[null,null,null,null,null,null,null,null,null,""]
[null,null,null,null,null,null,null,null,null,""]
[null,null,null,null,null,null,null,null,null,""]
[null,null,null,null,null,null,null,null,null,""]
[null,null,null,null,null,null,null,null,null,""]
[null,null,null,null,null,null,null,null,null,""]
[null,null,null,null,null,null,null,null,null,""]
[null,null,null,null,null,null,null,null,null,""]
[null,null,null,null,null,null,null,null,null,""]
[null,null,null,null,null,null,null,null,null,""]
[null,null,null,null,null,null,null,null,null,""]
[null,null,null,null,null,null,null,null,null,""]
[null,null,null,null,null,null,null,null,null,""]
[null,null,null,null,null,null,null,null,null,""]
[null,null,null,null,null,null,null,null,null,""]
[null,null,null,null,null,null,null,null,null,""]
[null,null,null,null,null,null,null,null,null,""]
[null,null,null,null,null,null,null,null,null,""]
[null,null,null,null,null,null,null,null,null,""]
[null,null,null,null,null,null,null,null,null,""]
[null,null,null,null,null,null,null,null,null,""]
[null,null,null,null,null,null,null,null,null,""]
[null,null,null,null,null,null,null,null,null,""]
[null,null,null,null,null,null,null,null,null,""]
[null,null,null,null,null,null,null,null,null,""]
[null,null,null,null,null,null,null,null,null,""]
[null,null,null,null,null,null,null,null,null,""]
[null,null,null,null,null,null,null,null,null,""]
[null,null,null,null,null,null,null,null,null,""]
[null,null,null,null,null,null,null,null,null,""]
[null,null,null,null,null,null,null,null,null,""]
[null,null,null,null,null,null,null,null,null,""]
[null,null,null,null,null,null,null,null,null,""]
[null,null,null,null,null,null,null,null,null,""]
[null,null,null,null,null,null,null,null,null,""]
[null,null,null,null,null,null,null,null,null,""]
[null,null,null,null,null,null,null,null,null,""]
[null,null,null,null,null,null,null,null,null,""]
[null,null,null,null,null,null,null,null,null,""]
[null,null,null,null,null,null,null,null,null,""]
[null,null,null,null,null,null,null,null,null,""]
[null,null,null,null,null,null,null,null,null,""]
[null,null,null,null,null,null,null,null,null,""]
[null,null,null,null,null,null,null,null,null,""]
[null,null,null,null,null,null,null,null,null,""]
[null,null,null,null,null,null,null,null,null,""]
[null,null,null,null,null,null,null,null,null,""]
[null,null,null,null,null,null,null,null,null,""]
[null,null,null,null,null,null,null,null,null,""]
[null,null,null,null,null,null,null,null,null,""]
[null,null,null,null,null,null,null,null,null,""]
[null,null,null,null,null,null,null,null,null,""]
[null,null,null,null,null,null,null,null,null,""]
[null,null,null,null,null,null,null,null,null,""]
[null,null,null,null,null,null,null,null,null,""]
[null,null,null,null,null,null,null,null,null,""]
[null,null,null,null,null,null,null,null,null,""]
[null,null,null,null,null,null,null,null,null,""]
[null,null,null,null,null,null,null,null,null,""]
[null,null,null,null,null,null,null,null,null,""]
[null,null,null,null,null,null,null,null,null,""]
[null,null,null,null,null,null,null,null,null,""]
[null,null,null,null,null,null,null,null,null,""]
[null,null,null,null,null,null,null,null,null,""]
[null,null,null,null,null,null,null,null,null,""]
[null,null,null,null,null,null,null,null,null,""]
[null,null,null,null,null,null,null,null,null,""]
[null,null,null,null,null,null,null,null,null,""]
[null,null,null,null,null,null,null,null,null,""]
[null,null,null,null,null,null,null,null,null,""]
[null,null,null,null,null,null,null,null,null,""]
[null,null,null,null,null,null,null,null,null,""]
[null,null,null,null,null,null,null,null,null,""]
[null,null,null,null,null,null,null,null,null,""]
[null,null,null,null,null,null,null,null,null,""]
[null,null,null,null,null,null,null,null,null,""]
[null,null,null,null,null,null,null,null,null,""]
[null,null,null,null,null,null,null,null,null,""]
[null,null,null,null,null,null,null,null,null,""]
[null,null,null,null,null,null,null,null,null,""]
[null,null,null,null,null,null,null,null,null,""]
[null,null,null,null,null,null,null,null,null,""]
[null,null,null,null,null,null,null,null,null,""]
[null,null,null,null,null,null,null,null,null,""]
[null,null,null,null,null,null,null,null,null,""]
[null,null,null,null,null,null,null,null,null,""]
[null,null,null,null,null,null,null,null,null,""]
[null,null,null,null,null,null,null,null,null,""]
[null,null,null,null,null,null,null,null,null,""]
[null,null,null,null,null,null,null,null,null,""]
[null,null,null,null,null,null,null,null,null,""]
[null,null,null,null,null,null,null,null,null,""]
[null,null,null,null,null,null,null,null,null,""]
[null,null,null,null,null,null,null,null,null,""]
[null,null,null,null,null,null,null,null,null,""]
[null,null,null,null,null,null,null,null,null,""]
[null,null,null,null,null,null,null,null,null,""]
[null,null,null,null,null,null,null,null,null,""]
[null,null,null,null,null,null,null,null,null,""]
[null,null,null,null,null,null,null,null,null,""]
[null,null,null,null,null,null,null,null,null,""]
[null,null,null,null,null,null,null,null,null,""]
[null,null,null,null,null,null,null,null,null,""]
[null,null,null,null,null,null,null,null,null,""]
[null,null,null,null,null,null,null,null,null,""]
[null,null,null,null,null,null,null,null,null,""]
[null,null,null,null,null,null,null,null,null,""]
[null,null,null,null,null,null,null,null,null,""]
[null,null,null,null,null,null,null,null,null,""]
[null,null,null,null,null,null,null,null,null,""]

{"sheet":"Erhebungsbogen","index":7,"n_rows":38,"n_cols":14,"rows_kept":38,"cut":false,"hidden":false,"merged":[[1,0,1,1],[25,6,25,9],[24,4,24,5],[23,4,23,5],[22,4,22,5],[24,8,24,9],[0,0,0,9],[24,0,24,1],[20,2,20,3],[20,4,20,5],[10,0,11,1],[12,8,12,9],[11,4,11,5],[12,4,12,5],[11,8,11,9],[13,8,13,9],[19,4,19,5],[18,4,18,5],[17,4,17,5],[23,8,23,9],[22,8,22,9],[19,2,19,3],[18,2,18,3],[17,2,17,3],[8,11,8,12],[6,2,6,4],[6,5,6,6],[6,7,6,8],[6,9,6,10],[22,12,22,13],[35,1,35,9],[35,10,35,11],[35,12,35,13],[20,12,20,13],[21,12,21,13],[33,1,33,9],[33,10,33,11],[33,12,33,13],[31,1,31,9],[31,10,31,11],[27,10,27,11],[27,1,27,9],[25,10,25,11],[31,12,31,13],[27,12,27,13],[25,0,25,1],[25,12,25,13],[25,2,25,5],[17,12,17,13],[10,10,10,11],[23,12,23,13],[24,12,24,13],[2,8,2,10],[3,11,3,12],[4,11,4,12],[6,11,6,12],[3,7,3,8],[3,9,3,10],[4,7,4,8],[4,9,4,10],[1,13,3,13],[15,12,15,13],[16,12,16,13],[1,8,1,11],[1,2,1,7],[10,12,11,13],[12,12,12,13],[13,12,13,13],[8,2,8,4],[8,5,8,6],[8,7,8,8],[3,2,3,4],[4,0,4,1],[16,2,16,3],[15,2,15,3],[24,2,24,3],[16,6,16,7],[15,6,15,7],[14,6,14,7],[6,0,6,1],[8,0,8,1],[16,4,16,5],[15,4,15,5],[17,6,17,7],[23,2,23,3],[22,2,22,3],[21,2,21,3],[18,6,18,7],[3,5,3,6],[4,2,4,4],[4,5,4,6],[2,2,2,6],[10,2,10,5],[10,6,10,9],[11,2,11,3],[14,2,14,3],[13,2,13,3],[12,2,12,3],[13,6,13,7],[12,6,12,7],[11,6,11,7],[14,4,14,5],[13,4,13,5],[8,9,8,10],[37,12,37,13],[37,10,37,11],[37,1,37,9],[29,1,29,9],[29,10,29,11],[29,12,29,13],[16,8,16,9],[15,8,15,9],[14,8,14,9],[21,8,21,9],[20,8,20,9],[19,8,19,9],[18,8,18,9],[17,8,17,9],[24,6,24,7],[23,6,23,7],[22,6,22,7],[21,6,21,7],[20,6,20,7],[19,6,19,7],[19,12,19,13],[14,12,14,13],[18,12,18,13],[21,4,21,5]]}
["Jugenderhebungsbogen Erhebungsjahr",null,null,null,null,null,null,null,null,null,{"$f":"Deckblatt!A3","v":"2020"}]
["Verein:",null,{"$f":"Deckblatt!A5","v":"(Vereinsname eintragen)"},null,null,null,null,null,{"$f":"Deckblatt!B5","v":"(Vereinsort eintragen)"},null,null,null,null,"Jugendleiter seit:"]
[null,null,"Regierungsbezirk:",null,null,null,null,{"$f":"IF(I3=\"Oberbayern\",\"1\",IF(I3=\"Niederbayern\",\"2\",IF(I3=\"Oberfranken\",\"4\",IF(I3=\"Mittelfranken\",\"5\",IF(I3=\"Unterfranken\",\"6\",IF(I3=\"Oberpfalz\",\"3\",IF(I3=\"Schwaben\",\"7\",\"\")))))))","v":"1"},{"$f":"Deckblatt!B6","v":"Oberbayern"}]
[null,null,"Name, Vorname",null,null,"Straße, Nr.",null,"PLZ,Ort",null,"Telefon",null,"Email"]
["Jugendleiter:"]
[]
["Stellvertreter:"]
[]
["Stellvertreter:"]
[]
["Gruppen/ Sachgebiete",null,"0 bis 15 Jahre",null,null,null,"16 bis einschl. 26 Jahre",null,null,null,"Summe in der Gruppe",null,"Gruppe Gesamt"]
[null,null,"Deandl",null,"Buam",null,"Deandl",null,"Buam",null,"Deandl","Buam"]
[1,"Jugendliche bis 26 Jahre",{"$f":"COUNTIFS(Deandl!$J:$J,\"x\",Deandl!$E:$E,\"<=15\")","v":0},null,{"$f":"COUNTIFS(Buam!J2:J952,\"x\",Buam!E2:E952,\"<=15\")","v":0},null,{"$f":"COUNTIFS(Deandl!$J:$J,\"x\",Deandl!$E:$E,\"<=26\",Deandl!$E:$E,\">=16\")","v":0},null,{"$f":"COUNTIFS(Buam!$J:$J,\"x\",Buam!$E:$E,\"<=26\",Buam!$E:$E,\">=16\")","v":0},null,{"$f":"C13+G13","v":0},{"$f":"E13+I13","v":0},{"$f":"K13+L13","v":0}]
[{"$f":"A13+1","v":2},"Schuhplattler/Dreherinnen",{"$f":"COUNTIFS(Deandl!$K:$K,\"x\",Deandl!$E:$E,\"<=15\")","v":0},null,{"$f":"COUNTIFS(Buam!$K:$K,\"x\",Buam!$E:$E,\"<=15\")","v":0},null,{"$f":"COUNTIFS(Deandl!$K:$K,\"x\",Deandl!$E:$E,\"<=26\",Deandl!$E:$E,\">=16\")","v":0},null,{"$f":"COUNTIFS(Buam!$K:$K,\"x\",Buam!$E:$E,\"<=26\",Buam!$E:$E,\">=16\")","v":0},null,{"$f":"C14+G14","v":0},{"$f":"E14+I14","v":0},{"$f":"K14+L14","v":0}]
[{"$f":"A14+1","v":3},"Tänzer/-innen",{"$f":"COUNTIFS(Deandl!$L:$L,\"x\",Deandl!$E:$E,\"<=15\")","v":0},null,{"$f":"COUNTIFS(Buam!$L:$L,\"x\",Buam!$E:$E,\"<=15\")","v":0},null,{"$f":"COUNTIFS(Deandl!$L:$L,\"x\",Deandl!$E:$E,\"<=26\",Deandl!$E:$E,\">=16\")","v":0},null,{"$f":"COUNTIFS(Buam!$L:$L,\"x\",Buam!$E:$E,\"<=26\",Buam!$E:$E,\">=16\")","v":0},null,0,0,0]
[4,"Sänger/Sängerinnen",{"$f":"COUNTIFS(Deandl!$M:$M,\"x\",Deandl!$E:$E,\"<=15\")","v":0},null,{"$f":"COUNTIFS(Buam!$M:$M,\"x\",Buam!$E:$E,\"<=15\")","v":0},null,{"$f":"COUNTIFS(Deandl!$M:$M,\"x\",Deandl!$E:$E,\"<=26\",Deandl!$E:$E,\">=16\")","v":0},null,{"$f":"COUNTIFS(Buam!$M:$M,\"x\",Buam!$E:$E,\"<=26\",Buam!$E:$E,\">=16\")","v":0},null,0,0,0]
[5,"Volksmusikanten/-innen",{"$f":"COUNTIFS(Deandl!$N:$N,\"x\",Deandl!$E:$E,\"<=15\")","v":0},null,{"$f":"COUNTIFS(Buam!$N:$N,\"x\",Buam!$E:$E,\"<=15\")","v":0},null,{"$f":"COUNTIFS(Deandl!$N:$N,\"x\",Deandl!$E:$E,\"<=26\",Deandl!$E:$E,\">=16\")","v":0},null,{"$f":"COUNTIFS(Buam!$N:$N,\"x\",Buam!$E:$E,\"<=26\",Buam!$E:$E,\">=16\")","v":0},null,0,0,0]
[6,"Brauchtum/Böllerschützen",{"$f":"COUNTIFS(Deandl!$O:$O,\"x\",Deandl!$E:$E,\"<=15\")","v":0},null,{"$f":"COUNTIFS(Buam!$O:$O,\"x\",Buam!$E:$E,\"<=15\")","v":0},null,{"$f":"COUNTIFS(Deandl!$O:$O,\"x\",Deandl!$E:$E,\"<=26\",Deandl!$E:$E,\">=16\")","v":0},null,{"$f":"COUNTIFS(Buam!$O:$O,\"x\",Buam!$E:$E,\"<=26\",Buam!$E:$E,\">=16\")","v":0},null,0,0,0]
[7,"Schnalzer",{"$f":"COUNTIFS(Deandl!$P:$P,\"x\",Deandl!$E:$E,\"<=15\")","v":0},null,{"$f":"COUNTIFS(Buam!$P:$P,\"x\",Buam!$E:$E,\"<=15\")","v":0},null,{"$f":"COUNTIFS(Deandl!$P:$P,\"x\",Deandl!$E:$E,\"<=26\",Deandl!$E:$E,\">=16\")","v":0},null,{"$f":"COUNTIFS(Buam!$P:$P,\"x\",Buam!$E:$E,\"<=26\",Buam!$E:$E,\">=16\")","v":0},null,0,0,0]
[8,"Vereinsmusiker/-innen",{"$f":"COUNTIFS(Deandl!$Q:$Q,\"x\",Deandl!$E:$E,\"<=15\")","v":0},null,{"$f":"COUNTIFS(Buam!$Q:$Q,\"x\",Buam!$E:$E,\"<=15\")","v":0},null,{"$f":"COUNTIFS(Deandl!$Q:$Q,\"x\",Deandl!$E:$E,\"<=26\",Deandl!$E:$E,\">=16\")","v":0},null,{"$f":"COUNTIFS(Buam!$Q:$Q,\"x\",Buam!$E:$E,\"<=26\",Buam!$E:$E,\">=16\")","v":0},null,0,0,0]
[9,"Theaterspieler/-innen",{"$f":"COUNTIFS(Deandl!$R:$R,\"x\",Deandl!$E:$E,\"<=15\")","v":0},null,{"$f":"COUNTIFS(Buam!$R:$R,\"x\",Buam!$E:$E,\"<=15\")","v":0},null,{"$f":"COUNTIFS(Deandl!$R:$R,\"x\",Deandl!$E:$E,\"<=26\",Deandl!$E:$E,\">=16\")","v":0},null,{"$f":"COUNTIFS(Buam!$R:$R,\"x\",Buam!$E:$E,\"<=26\",Buam!$E:$E,\">=16\")","v":0},null,0,0,0]
[10,"Musikkapelle",{"$f":"COUNTIFS(Deandl!$S:$S,\"x\",Deandl!$E:$E,\"<=15\")","v":0},null,{"$f":"COUNTIFS(Buam!$S:$S,\"x\",Buam!$E:$E,\"<=15\")","v":0},null,{"$f":"COUNTIFS(Deandl!$S:$S,\"x\",Deandl!$E:$E,\"<=26\",Deandl!$E:$E,\">=16\")","v":0},null,{"$f":"COUNTIFS(Buam!$S:$S,\"x\",Buam!$E:$E,\"<=26\",Buam!$E:$E,\">=16\")","v":0},null,0,0,0]
[11,"Handwerk und Basteln",{"$f":"COUNTIFS(Deandl!$T:$T,\"x\",Deandl!$E:$E,\"<=15\")","v":0},null,{"$f":"COUNTIFS(Buam!$T:$T,\"x\",Buam!$E:$E,\"<=15\")","v":0},null,{"$f":"COUNTIFS(Deandl!$T:$T,\"x\",Deandl!$E:$E,\"<=26\",Deandl!$E:$E,\">=16\")","v":0},null,{"$f":"COUNTIFS(Buam!$T:$T,\"x\",Buam!$E:$E,\"<=26\",Buam!$E:$E,\">=16\")","v":0},null,0,0,{"$f":"K23+L23","v":0}]
[12,"Sonstige",{"$f":"(COUNTIFS(Deandl!$W:$W,\"x\",Deandl!$E:$E,\"<=15\")+(COUNTIFS(Deandl!$Y:$Y,\"x\",Deandl!$E:$E,\"<=15\")+COUNTIFS(Deandl!$AA:$AA,\"x\",Deandl!$E:$E,\"<=15\")))","v":0},null,{"$f":"(COUNTIFS(Buam!$W:$W,\"x\",Buam!$E:$E,\"<=15\")+(COUNTIFS(Buam!$Y:$Y,\"x\",Buam!$E:$E,\"<=15\")+COUNTIFS(Buam!$AA:$AA,\"x\",Buam!$E:$E,\"<=15\")))","v":0},null,{"$f":"(COUNTIFS(Deandl!$W:$W,\"x\",Deandl!$E:$E,\"<=26\",Deandl!$E:$E,\">=16\")+(COUNTIFS(Deandl!$Y:$Y,\"x\",Deandl!$E:$E,\"<=26\",Deandl!$E:$E,\">=16\")+COUNTIFS(Deandl!$AA:$AA,\"x\",Deandl!$E:$E,\"<=26\",Deandl!$E:$E,\">=16\")))","v":0},null,{"$f":"(COUNTIFS(Buam!$W:$W,\"x\",Buam!$E:$E,\"<=26\",Buam!$E:$E,\">=16\")+(COUNTIFS(Buam!$Y:$Y,\"x\",Buam!$E:$E,\"<=26\",Buam!$E:$E,\">=16\")+COUNTIFS(Buam!$AA:$AA,\"x\",Buam!$E:$E,\"<=26\",Buam!$E:$E,\">=16\")))","v":0},null,0,0,0]
["Summe im Altersbereich",null,{"$f":"SUM(C13:D24)","v":0},null,{"$f":"SUM(E13:F24)","v":0},null,{"$f":"SUM(G13:H24)","v":0},null,{"$f":"SUM(I13:J24)","v":0},null,{"$f":"SUM(K13:K24)","v":0},{"$f":"SUM(L13:L24)","v":0}]
["Altersbereich gesamt",null,{"$f":"C25+E25","v":0},null,null,null,{"$f":"G25+I25","v":0},null,null,null,"Gruppenstärke Gesamt",null,{"$f":"SUM(M13:M25)","v":0}]
[]
[13,"(im Moment/vorübergehend) Passive Kinder und Jugendliche bis 26 Jahre",null,null,null,null,null,null,null,null,"Gesamt",null,{"$f":"COUNTIFS(Buam!$U:$U,\"x\",Buam!$E:$E,\"<=26\")+(COUNTIFS(Deandl!$U:$U,\"x\",Deandl!$E:$E,\"<=26\"))","v":0}]
[]
[13,"Gruppenstärke Gesamt ",null,null,null,null,null,null,null,null,"Gesamt",null,{"$f":"M26+M28","v":0}]
[]
[13,"Anzahl der Verantwortlichen / Mitarbeiter / Helfer in der Jugendarbeit",null,null,null,null,null,null,null,null,"Gesamt",null,0]
[]
[14,"davon mit abgeschlossener Jugendleiter-Grundschulung und (ab 2018) gültiger JULEICA",null,null,null,null,null,null,null,null,"Gesamt",null,{"$f":"COUNTIFS(Jugendleiter!T2:T97,\"x\",Jugendleiter!T2:T97,\"x\",Jugendleiter!U2:U97,\"x\")","v":0}]
[]
[15,"maximal förderfähige qualifizierte Jugendleiter",null,null,null,null,null,null,null,null,"Gesamt",null,{"$f":"IF(M13>100,\"10\",ROUNDUP(M13/10,0))*1","v":0}]
[]
[16,"im Erhebungsjahr förderfähige Jugendleiter",null,null,null,null,null,null,null,null,"Gesamt",null,{"$f":"IF(M34<M36,M34,M36)","v":0}]

{"sheet":"Förderantrag","index":8,"n_rows":55,"n_cols":7,"rows_kept":55,"cut":false,"hidden":false,"merged":[[1,6,1,7],[49,2,49,3],[49,4,49,7],[24,1,26,1],[24,0,26,0],[20,2,21,5],[20,1,21,1],[20,0,21,0],[18,0,18,1],[3,0,3,8],[17,0,17,1],[16,0,16,1],[15,0,15,1],[8,0,8,4],[5,0,6,8],[20,6,21,7],[17,2,17,8],[18,2,18,8],[54,0,56,8],[40,0,42,1],[24,2,26,5],[24,6,26,7],[52,4,52,7],[51,2,51,3],[51,4,51,7],[50,4,50,7],[46,3,46,8],[44,3,45,8],[42,3,42,8],[40,3,40,8],[29,0,34,8],[35,0,38,8],[9,0,9,8],[8,5,8,8],[15,6,15,8],[15,2,15,5],[16,2,16,8]]}
[]
[null,null,null,null,null,"Bearbeitungsnr. des Verbands:"]
[]
["Bayerischer Trachtenverband e. V."]
[]
["Förderung der Jugendarbeit im Bayer. Trachtenverband e.V. aus Haushaltsmitteln zur Förderung des Trachtenwesens des Freistaats Bayern"]
[]
[]
["Förderungsantrag",null,null,null,null,{"$f":"Deckblatt!A3","v":"2020"}]
["(Vordruck Vereine)"]
[]
[]
[]
[]
[]
["Antragstellender Verein:",null,{"$f":"Deckblatt!A5","v":"(Vereinsname eintragen)"},null,null,null,{"$f":"Deckblatt!B5","v":"(Vereinsort eintragen)"}]
["Anschrift:"]
["Vertretungsberechtigter Vorsitzender:"]
["Übergeordneter Gau-/Trachtenverband:"]
[]
["1.","Pro-Kopf-Förderung","Anzahl gemeldete Jugendliche bis zum vollendeten 27. Lebensjahr (bis einschl. 26 Jahre):",null,null,null,{"$f":"Erhebungsbogen!M13","v":0}]
[]
[]
[]
["2.","Ausbildungs- und Qualifikations-förderung","Anzahl der Jugendleiter/Innen und Mitarbeiter/Innen in der Vereinsjugendarbeit, mit abgeschlossener Jugendleiter-Grundschulung und gültiger Jugendleiterkarte",null,null,null,{"$f":"Erhebungsbogen!M38","v":0}]
[]
[]
[]
[]
["Die Zuwendung wird ausschließlich zur Erfüllung des Zuwendungszwecks laut den Richtlinien zur Förderung der Jugendarbeit im Bayer. Trachtenverband e.V. verwendet. Alle in Richtlinien und Verfahrens- und Verwaltungsvorschriften enthaltenen Bestimmungen und genannten Bedingungen und Auflagen sind bekannt und werden eingehalten. Dem Unterzeichner ist bekannt, dass die Zuwendung im Falle ihrer zweckwidrigen Verwendung der Rückforderung und Verzinsung unterliegt."]
[]
[]
[]
[]
[]
["Der Bayerische Oberste Rechnungshof, das Bayerische Staatsministerium für Wissenschaft, Forschung und Kunst und der Bayerische Trachtenverband sind berechtigt, die Verwendung des Zuschusses an Ort und Stelle nachzuprüfen. Alle Unterlagen und Belege sind aus diesem Grund für mindestens 5 Jahre aufzubewahren!"]
[]
[]
[]
[]
["Die Überweisung des Zuschusses soll erfolgen auf:",null,"IBAN:"]
[]
[null,null,"BIC:"]
[]
[null,null,"Geldinstitut:"]
[]
[null,null,"Kontoinhaber:"]
[]
[]
["Datum:",{"$f":"TODAY()","v":"2020-10-16"},"Vorsitzender:"]
[null,null,null,null,"(Unterschrift/Stempel)"]
[null,null,"Jugendvertreter:"]
[null,null,null,null,"(Unterschrift/Stempel)"]
[]
["Dieser Antrag ist vollständig ausgefüllt und unterzeichnet durch den Vertretungsberechtigten Vorsitzenden und den Jugendvertreter des antragstellenden Mitgliedsvereins beim übergeordneten Gau-/Trachtenverband einzureichen."]

{"sheet":"Zusätzliche Auswertungen","index":9,"n_rows":18,"n_cols":15,"rows_kept":18,"cut":false,"hidden":false,"merged":[[0,0,0,8],[1,0,1,7]]}
["Kinder- und Jugenderfassung  - Zusätzliche Auswertungen"]
[]
["Buam",null,null,null,null,"Deandl"]
["Spalte",null,"Suchkriterium eintragen","Anzahl",null,"Spalte",null,"Suchkriterium eintragen","Anzahl"]
[1,"Suche nach",null,{"$f":"IF(A5=1,COUNTIFS(Buam!$B$2:$B$952,C5),IF(A5=2,COUNTIFS(Buam!$C$2:$C$952,C5),IF(A5=3,COUNTIFS(Buam!$E$2:$E$952,C5),IF(A5=4,COUNTIFS(Buam!$H$2:$H$952,C5),IF(A5=5,COUNTIFS(Buam!$V$2:$V$952,C5),IF(A5=6,COUNTIFS(Buam!$X$2:$X$952,C5),IF(A5=7,COUNTIFS(Buam!$B$2:$Z$952,Y5),IF(A5=8,COUNTIFS(Buam!$AB$2:$AB$952,C5),IF(A5=9,COUNTIFS(Buam!B$2:AC952,C5),IF(A5=10,COUNTIFS(Buam!$AD$2:$AD$952,C5),IF(A5=11,COUNTIFS(Buam!$AE$2:$AE$952,C5))))))))))))","v":0},null,1,"Suche nach",null,{"$f":"IF(F5=1,COUNTIFS(Deandl!$B$2:$B$963,H5),IF(F5=2,COUNTIFS(Deandl!$C$2:$C$963,H5),IF(F5=3,COUNTIFS(Deandl!$E$2:$E$963,H5),IF(F5=4,COUNTIFS(Deandl!$H$2:$H$963,H5),IF(F5=5,COUNTIFS(Deandl!$V$2:$V$963,H5),IF(F5=6,COUNTIFS(Deandl!$X$2:$X$963,H5),IF(F5=7,COUNTIFS(Deandl!$B$2:$Z$963,AD5),IF(F5=8,COUNTIFS(Deandl!$AB$2:$AB$963,H5),IF(F5=9,COUNTIFS(Deandl!G$2:AH963,H5),IF(F5=10,COUNTIFS(Deandl!$AD$2:$AD$963,H5),IF(F5=11,COUNTIFS(Deandl!$AE$2:$AE$963,H5))))))))))))","v":0}]
[1,"Suche nach",null,{"$f":"IF(A6=1,COUNTIFS(Buam!$B$2:$B$952,C6),IF(A6=2,COUNTIFS(Buam!$C$2:$C$952,C6),IF(A6=3,COUNTIFS(Buam!$E$2:$E$952,C6),IF(A6=4,COUNTIFS(Buam!$H$2:$H$952,C6),IF(A6=5,COUNTIFS(Buam!$V$2:$V$952,C6),IF(A6=6,COUNTIFS(Buam!$X$2:$X$952,C6),IF(A6=7,COUNTIFS(Buam!$B$2:$Z$952,Y6),IF(A6=8,COUNTIFS(Buam!$AB$2:$AB$952,C6),IF(A6=9,COUNTIFS(Buam!B$2:AC953,C6),IF(A6=10,COUNTIFS(Buam!$AD$2:$AD$952,C6),IF(A6=11,COUNTIFS(Buam!$AE$2:$AE$952,C6))))))))))))","v":0},null,1,"Suche nach",null,{"$f":"IF(F6=1,COUNTIFS(Deandl!$B$2:$B$964,H6),IF(F6=2,COUNTIFS(Deandl!$C$2:$C$964,H6),IF(F6=3,COUNTIFS(Deandl!$D$2:$D$964,H6),IF(F6=4,COUNTIFS(Deandl!$I$2:$I$964,H6),IF(F6=5,COUNTIFS(Deandl!$V$2:$V$964,H6),IF(F6=6,COUNTIFS(Deandl!$X$2:$X$964,H6),IF(F6=7,COUNTIFS(Deandl!$B$2:$Z$964,AD6),IF(F6=8,COUNTIFS(Deandl!$AB$2:$AB$964,H6),IF(F6=9,COUNTIFS(Deandl!G$2:AH965,H6),IF(F6=10,COUNTIFS(Deandl!$AD$2:$AD$964,H6),IF(F6=11,COUNTIFS(Deandl!$AE$2:$AE$964,H6))))))))))))","v":0}]
[1,"Suche nach",null,{"$f":"IF(A7=1,COUNTIFS(Buam!$B$2:$B$952,C7),IF(A7=2,COUNTIFS(Buam!$C$2:$C$952,C7),IF(A7=3,COUNTIFS(Buam!$E$2:$E$952,C7),IF(A7=4,COUNTIFS(Buam!$H$2:$H$952,C7),IF(A7=5,COUNTIFS(Buam!$V$2:$V$952,C7),IF(A7=6,COUNTIFS(Buam!$X$2:$X$952,C7),IF(A7=7,COUNTIFS(Buam!$B$2:$Z$952,Y7),IF(A7=8,COUNTIFS(Buam!$AB$2:$AB$952,C7),IF(A7=9,COUNTIFS(Buam!B$2:AC954,C7),IF(A7=10,COUNTIFS(Buam!$AD$2:$AD$952,C7),IF(A7=11,COUNTIFS(Buam!$AE$2:$AE$952,C7))))))))))))","v":0},null,1,"Suche nach",null,{"$f":"IF(F7=1,COUNTIFS(Deandl!$B$2:$B$964,H7),IF(F7=2,COUNTIFS(Deandl!$C$2:$C$964,H7),IF(F7=3,COUNTIFS(Deandl!$D$2:$D$964,H7),IF(F7=4,COUNTIFS(Deandl!$I$2:$I$964,H7),IF(F7=5,COUNTIFS(Deandl!$V$2:$V$964,H7),IF(F7=6,COUNTIFS(Deandl!$X$2:$X$964,H7),IF(F7=7,COUNTIFS(Deandl!$B$2:$Z$964,AD7),IF(F7=8,COUNTIFS(Deandl!$AB$2:$AB$964,H7),IF(F7=9,COUNTIFS(Deandl!G$2:AH966,H7),IF(F7=10,COUNTIFS(Deandl!$AD$2:$AD$964,H7),IF(F7=11,COUNTIFS(Deandl!$AE$2:$AE$964,H7))))))))))))","v":0}]
[1,"Suche nach",null,{"$f":"IF(A8=1,COUNTIFS(Buam!$B$2:$B$952,C8),IF(A8=2,COUNTIFS(Buam!$C$2:$C$952,C8),IF(A8=3,COUNTIFS(Buam!$E$2:$E$952,C8),IF(A8=4,COUNTIFS(Buam!$H$2:$H$952,C8),IF(A8=5,COUNTIFS(Buam!$V$2:$V$952,C8),IF(A8=6,COUNTIFS(Buam!$X$2:$X$952,C8),IF(A8=7,COUNTIFS(Buam!$B$2:$Z$952,Y8),IF(A8=8,COUNTIFS(Buam!$AB$2:$AB$952,C8),IF(A8=9,COUNTIFS(Buam!B$2:AC955,C8),IF(A8=10,COUNTIFS(Buam!$AD$2:$AD$952,C8),IF(A8=11,COUNTIFS(Buam!$AE$2:$AE$952,C8))))))))))))","v":0},null,1,"Suche nach",null,{"$f":"IF(F8=1,COUNTIFS(Deandl!$B$2:$B$952,H8),IF(F8=2,COUNTIFS(Deandl!$C$2:$C$952,H8),IF(F8=3,COUNTIFS(Deandl!$D$2:$D$952,H8),IF(F8=4,COUNTIFS(Deandl!$I$2:$I$952,H8),IF(F8=5,COUNTIFS(Deandl!$V$2:$V$952,H8),IF(F8=6,COUNTIFS(Deandl!$X$2:$X$952,H8),IF(F8=7,COUNTIFS(Deandl!$B$2:$Z$952,AD8),IF(F8=8,COUNTIFS(Deandl!$AB$2:$AB$952,H8),IF(F8=9,COUNTIFS(Deandl!G$2:AH955,H8),IF(F8=10,COUNTIFS(Deandl!$AD$2:$AD$952,H8),IF(F8=11,COUNTIFS(Deandl!$AE$2:$AE$952,H8))))))))))))","v":0},null,null,null,null,null,"Name"]
[1,"Suche nach",null,{"$f":"IF(A9=1,COUNTIFS(Buam!$B$2:$B$952,C9),IF(A9=2,COUNTIFS(Buam!$C$2:$C$952,C9),IF(A9=3,COUNTIFS(Buam!$E$2:$E$952,C9),IF(A9=4,COUNTIFS(Buam!$H$2:$H$952,C9),IF(A9=5,COUNTIFS(Buam!$V$2:$V$952,C9),IF(A9=6,COUNTIFS(Buam!$X$2:$X$952,C9),IF(A9=7,COUNTIFS(Buam!$B$2:$Z$952,Y9),IF(A9=8,COUNTIFS(Buam!$AB$2:$AB$952,C9),IF(A9=9,COUNTIFS(Buam!B$2:AC956,C9),IF(A9=10,COUNTIFS(Buam!$AD$2:$AD$952,C9),IF(A9=11,COUNTIFS(Buam!$AE$2:$AE$952,C9))))))))))))","v":0},null,1,"Suche nach",null,{"$f":"IF(F9=1,COUNTIFS(Deandl!$B$2:$B$964,H9),IF(F9=2,COUNTIFS(Deandl!$C$2:$C$964,H9),IF(F9=3,COUNTIFS(Deandl!$D$2:$D$964,H9),IF(F9=4,COUNTIFS(Deandl!$I$2:$I$964,H9),IF(F9=5,COUNTIFS(Deandl!$V$2:$V$964,H9),IF(F9=6,COUNTIFS(Deandl!$X$2:$X$964,H9),IF(F9=7,COUNTIFS(Deandl!$B$2:$Z$964,AD9),IF(F9=8,COUNTIFS(Deandl!$AB$2:$AB$964,H9),IF(F9=9,COUNTIFS(Deandl!G$2:AH968,H9),IF(F9=10,COUNTIFS(Deandl!$AD$2:$AD$964,H9),IF(F9=11,COUNTIFS(Deandl!$AE$2:$AE$964,H9))))))))))))","v":0},null,null,null,null,null,"Vorname"]
[1,"Suche nach",null,{"$f":"IF(A10=1,COUNTIFS(Buam!$B$2:$B$952,C10),IF(A10=2,COUNTIFS(Buam!$C$2:$C$952,C10),IF(A10=3,COUNTIFS(Buam!$E$2:$E$952,C10),IF(A10=4,COUNTIFS(Buam!$H$2:$H$952,C10),IF(A10=5,COUNTIFS(Buam!$V$2:$V$952,C10),IF(A10=6,COUNTIFS(Buam!$X$2:$X$952,C10),IF(A10=7,COUNTIFS(Buam!$B$2:$Z$952,Y10),IF(A10=8,COUNTIFS(Buam!$AB$2:$AB$952,C10),IF(A10=9,COUNTIFS(Buam!B$2:AC957,C10),IF(A10=10,COUNTIFS(Buam!$AD$2:$AD$952,C10),IF(A10=11,COUNTIFS(Buam!$AE$2:$AE$952,C10))))))))))))","v":0},null,1,"Suche nach",null,{"$f":"IF(F10=1,COUNTIFS(Deandl!$B$2:$B$964,H10),IF(F10=2,COUNTIFS(Deandl!$C$2:$C$964,H10),IF(F10=3,COUNTIFS(Deandl!$D$2:$D$964,H10),IF(F10=4,COUNTIFS(Deandl!$I$2:$I$964,H10),IF(F10=5,COUNTIFS(Deandl!$V$2:$V$964,H10),IF(F10=6,COUNTIFS(Deandl!$X$2:$X$964,H10),IF(F10=7,COUNTIFS(Deandl!$B$2:$Z$964,AD10),IF(F10=8,COUNTIFS(Deandl!$AB$2:$AB$964,H10),IF(F10=9,COUNTIFS(Deandl!G$2:AH969,H10),IF(F10=10,COUNTIFS(Deandl!$AD$2:$AD$964,H10),IF(F10=11,COUNTIFS(Deandl!$AE$2:$AE$964,H10))))))))))))","v":0},null,null,null,null,null,"Alter"]
[1,"Suche nach",null,{"$f":"IF(A11=1,COUNTIFS(Buam!$B$2:$B$952,C11),IF(A11=2,COUNTIFS(Buam!$C$2:$C$952,C11),IF(A11=3,COUNTIFS(Buam!$E$2:$E$952,C11),IF(A11=4,COUNTIFS(Buam!$H$2:$H$952,C11),IF(A11=5,COUNTIFS(Buam!$V$2:$V$952,C11),IF(A11=6,COUNTIFS(Buam!$X$2:$X$952,C11),IF(A11=7,COUNTIFS(Buam!$B$2:$Z$952,Y11),IF(A11=8,COUNTIFS(Buam!$AB$2:$AB$952,C11),IF(A11=9,COUNTIFS(Buam!B$2:AC958,C11),IF(A11=10,COUNTIFS(Buam!$AD$2:$AD$952,C11),IF(A11=11,COUNTIFS(Buam!$AE$2:$AE$952,C11))))))))))))","v":0},null,1,"Suche nach",null,{"$f":"IF(F11=1,COUNTIFS(Deandl!$B$2:$B$964,H11),IF(F11=2,COUNTIFS(Deandl!$C$2:$C$964,H11),IF(F11=3,COUNTIFS(Deandl!$D$2:$D$964,H11),IF(F11=4,COUNTIFS(Deandl!$I$2:$I$964,H11),IF(F11=5,COUNTIFS(Deandl!$V$2:$V$964,H11),IF(F11=6,COUNTIFS(Deandl!$X$2:$X$964,H11),IF(F11=7,COUNTIFS(Deandl!$B$2:$Z$964,AD11),IF(F11=8,COUNTIFS(Deandl!$AB$2:$AB$964,H11),IF(F11=9,COUNTIFS(Deandl!G$2:AH970,H11),IF(F11=10,COUNTIFS(Deandl!$AD$2:$AD$964,H11),IF(F11=11,COUNTIFS(Deandl!$AE$2:$AE$964,H11))))))))))))","v":0},null,null,null,null,null,"PLZ"]
[1,"Suche nach",null,{"$f":"IF(A12=1,COUNTIFS(Buam!$B$2:$B$952,C12),IF(A12=2,COUNTIFS(Buam!$C$2:$C$952,C12),IF(A12=3,COUNTIFS(Buam!$E$2:$E$952,C12),IF(A12=4,COUNTIFS(Buam!$H$2:$H$952,C12),IF(A12=5,COUNTIFS(Buam!$V$2:$V$952,C12),IF(A12=6,COUNTIFS(Buam!$X$2:$X$952,C12),IF(A12=7,COUNTIFS(Buam!$B$2:$Z$952,Y12),IF(A12=8,COUNTIFS(Buam!$AB$2:$AB$952,C12),IF(A12=9,COUNTIFS(Buam!B$2:AC959,C12),IF(A12=10,COUNTIFS(Buam!$AD$2:$AD$952,C12),IF(A12=11,COUNTIFS(Buam!$AE$2:$AE$952,C12))))))))))))","v":0},null,1,"Suche nach",null,{"$f":"IF(F12=1,COUNTIFS(Deandl!$B$2:$B$964,H12),IF(F12=2,COUNTIFS(Deandl!$C$2:$C$964,H12),IF(F12=3,COUNTIFS(Deandl!$D$2:$D$964,H12),IF(F12=4,COUNTIFS(Deandl!$I$2:$I$964,H12),IF(F12=5,COUNTIFS(Deandl!$V$2:$V$964,H12),IF(F12=6,COUNTIFS(Deandl!$X$2:$X$964,H12),IF(F12=7,COUNTIFS(Deandl!$B$2:$Z$964,AD12),IF(F12=8,COUNTIFS(Deandl!$AB$2:$AB$964,H12),IF(F12=9,COUNTIFS(Deandl!G$2:AH971,H12),IF(F12=10,COUNTIFS(Deandl!$AD$2:$AD$964,H12),IF(F12=11,COUNTIFS(Deandl!$AE$2:$AE$964,H12))))))))))))","v":0},null,null,null,null,null,"Eintrittsjahr"]
[1,"Suche nach",null,{"$f":"IF(A13=1,COUNTIFS(Buam!$B$2:$B$952,C13),IF(A13=2,COUNTIFS(Buam!$C$2:$C$952,C13),IF(A13=3,COUNTIFS(Buam!$E$2:$E$952,C13),IF(A13=4,COUNTIFS(Buam!$H$2:$H$952,C13),IF(A13=5,COUNTIFS(Buam!$V$2:$V$952,C13),IF(A13=6,COUNTIFS(Buam!$X$2:$X$952,C13),IF(A13=7,COUNTIFS(Buam!$B$2:$Z$952,Y13),IF(A13=8,COUNTIFS(Buam!$AB$2:$AB$952,C13),IF(A13=9,COUNTIFS(Buam!B$2:AC960,C13),IF(A13=10,COUNTIFS(Buam!$AD$2:$AD$952,C13),IF(A13=11,COUNTIFS(Buam!$AE$2:$AE$952,C13))))))))))))","v":0},null,1,"Suche nach",null,{"$f":"IF(F13=1,COUNTIFS(Deandl!$B$2:$B$964,H13),IF(F13=2,COUNTIFS(Deandl!$C$2:$C$964,H13),IF(F13=3,COUNTIFS(Deandl!$D$2:$D$964,H13),IF(F13=4,COUNTIFS(Deandl!$I$2:$I$964,H13),IF(F13=5,COUNTIFS(Deandl!$V$2:$V$964,H13),IF(F13=6,COUNTIFS(Deandl!$X$2:$X$964,H13),IF(F13=7,COUNTIFS(Deandl!$B$2:$Z$964,AD13),IF(F13=8,COUNTIFS(Deandl!$AB$2:$AB$964,H13),IF(F13=9,COUNTIFS(Deandl!G$2:AH972,H13),IF(F13=10,COUNTIFS(Deandl!$AD$2:$AD$964,H13),IF(F13=11,COUNTIFS(Deandl!$AE$2:$AE$964,H13))))))))))))","v":0},null,null,null,null,null,"Sonstiges 1"]
[1,"Suche nach",null,{"$f":"IF(A14=1,COUNTIFS(Buam!$B$2:$B$952,C14),IF(A14=2,COUNTIFS(Buam!$C$2:$C$952,C14),IF(A14=3,COUNTIFS(Buam!$E$2:$E$952,C14),IF(A14=4,COUNTIFS(Buam!$H$2:$H$952,C14),IF(A14=5,COUNTIFS(Buam!$V$2:$V$952,C14),IF(A14=6,COUNTIFS(Buam!$X$2:$X$952,C14),IF(A14=7,COUNTIFS(Buam!$B$2:$Z$952,Y14),IF(A14=8,COUNTIFS(Buam!$AB$2:$AB$952,C14),IF(A14=9,COUNTIFS(Buam!B$2:AC961,C14),IF(A14=10,COUNTIFS(Buam!$AD$2:$AD$952,C14),IF(A14=11,COUNTIFS(Buam!$AE$2:$AE$952,C14))))))))))))","v":0},null,1,"Suche nach",null,{"$f":"IF(F14=1,COUNTIFS(Deandl!$B$2:$B$964,H14),IF(F14=2,COUNTIFS(Deandl!$C$2:$C$964,H14),IF(F14=3,COUNTIFS(Deandl!$D$2:$D$964,H14),IF(F14=4,COUNTIFS(Deandl!$I$2:$I$964,H14),IF(F14=5,COUNTIFS(Deandl!$V$2:$V$964,H14),IF(F14=6,COUNTIFS(Deandl!$X$2:$X$964,H14),IF(F14=7,COUNTIFS(Deandl!$B$2:$Z$964,AD14),IF(F14=8,COUNTIFS(Deandl!$AB$2:$AB$964,H14),IF(F14=9,COUNTIFS(Deandl!G$2:AH973,H14),IF(F14=10,COUNTIFS(Deandl!$AD$2:$AD$964,H14),IF(F14=11,COUNTIFS(Deandl!$AE$2:$AE$964,H14))))))))))))","v":0},null,null,null,null,null,"Sonstiges 2"]
[null,null,null,null,null,null,null,null,null,null,null,null,null,null,"Sonstiges 3"]
[null,null,null,null,null,null,null,null,null,null,null,null,null,null,"Zusätzlich I"]
[null,null,null,null,null,null,null,null,null,null,null,null,null,null,"Zusätzlich II"]
[null,null,null,null,null,null,null,null,null,null,null,null,null,null,"Zusätzlich III"]